Workbook

Sheet Version
B7: Modifications juin 2023 - ICEDD
B8: - Restriction des unités permises pour l'encodage des consommations de gaz: kWh PCS uniqumement (et non plus m³ en raison du caractère hétérogène et progressif de la conversion au gaz riche). - Ajout d'une explication complémentaire pour l'encodage des chaudières (ligne 105).

Sheet Calcul du rendement
B3: Evaluation du rendement saisonnier d'une ou d'un ensemble de chaudières
B5: Version 2023 - ICEDD
B6: Ce programme permet d'estimer le rendement saisonnier d'une installation de production de chaleur existante.
B10: Il est possible de tester des améliorations apportées à l'installaion. Par exemple, en remplaçant la ou les chaudières, en stoppant l'irrigation des chaudières à l'arrêt, en améliorant le réglage des brûleurs pour obtenir un meilleur rendement de combustion, en plaçant des brûleurs 2 allures, …
B12: - encodez les données relatives à votre situation dans les cases bleues.
B13: - les résultats sont repris dans les cases jaunes.
B15: Données climatiques
B17: Zone pour données météo | G17: UCCLE | I17: Ordre de grandeur
I18: - 8°C pour la région bruxelloise et le tournaisis
I19: - 9°C pour la région namuroise et du centre
B20: On considère que l'installation aurait dû être dimensionnée pour une température extérieure de : | G20: -8 | H20: °C | I20: - 10°C pour le sud et nord-est
B22: Consommation de combustible
B24: Combustible utilisé par la chaufferie :
B26: Consommation annuelle de référence : | F26: 55000
B28: Consommation annuelle de référence : | F28: =IF(Données!B11=3,'Calcul du rendement'!F26*Données!L5,'Calcul du rendement'!F26*Données!J5) -> 49610 | G28: kWh PCI / an
B30: Caractéristiques d'occupation du bâtiment
B32: Horaire journalier de fonctionnement de l'installation :
C34: Choisissez les plages de fonctionnement de l'installation en régime "jour" (2 plages possibles) :
D36: Période 1 : | E36: de | F36: 8 | G36: h à | H36: 18 | I36: h
D37: Période 2 : | E37: de | G37: h à | I37: h
B39: Horaire hebdomadaire :
B42: Température de consigne de jour : | F42: 19 | G42: °C
B43: Température de consigne d'inoccupation : | F43: 16 | G43: °C | H43: Home/Hôpital | I43: Bureaux | J43: Habitat | K43: Ecole
B44: Estimation des apports solaires/apports internes : | F44: 2 | G44: °C | H44: 3 °C | I44: 4 °C | J44: 3 °C | K44: 3 °C
B47: Durée d'utilisation des chaudières :
E49: Jour | F49: Mois
C50: Arrêt du chauffage : | E50: 15 | F50: 5
C51: Relance du chauffage : | E51: 15 | F51: 9
C53: Exemple : une installation arrêtée le 15 mai et relancée le 15 septembre
E55: Jour | F55: Mois
C56: Arrêt du chauffage : | E56: 15 | F56: 5
C57: Relance du chauffage : | E57: 15 | F57: 9
B59: Durée totale d'utilisation : | E59: =IF(G17="StHubert",'Fichier météo StHubert'!F20,'Fichier météo UCCLE'!F20) -> 5808 | F59: heures/an
B62: Description de l'installation
B64: Nombre de chaudières : | E64: 1 | F64: (maximum 4) | H64: =IF(E64>4,"Trop de chaudières !","") -> 
B66: Régulation des chaudières :
C69: Définition du mode de régulation via l'expérience de l'auditeur :
D71: 1. Régulation des chaudières :
D73: 2. Régulation des allures de brûleur :
E75: - dans le cas d'une installation de plus d'une chaudière avec simultanément des brûleurs 1 allure et 2 allures, on considérera que tous les brûleurs sont à 1 allure
E76: - dans le cas d'une installation avec brûleurs modulants, ceux-ci devront être assimilés à des brûleurs 2 allures
C80: Régime de température des chaudières (température moyenne des chaudières durant la saison de chauffe) : | O80: Mode de régulation pris en considération :
F81: Sur consigne aquastat en permanence (à 75°C) | O81: Régulation chaudières | P81: 3
F82: Température glissante avec limite basse (à 60°C) | O82: Régulation brûleurs | P82: 1
F83: Température glissante sans limite basse
O84: Choix cadre 21 : | P84: 1
E85: Température moyenne (départ - retour) estimée : | I85: =IF(P84=1,70,IF(P84=2,56,42)) -> 70 | J85: °C
E86: Facteur de correction du coefficient de perte à l'arrêt : | I86: =((I85-20)/(70-20))^1.3 -> 1
B90: Caractéristiques des chaudières (encodées dans l'ordre d'enclenchement d'une cascade éventuelle) :
D92: - les chaudières à condensation seront assimilées à des chaudières gaz brûleur pulsé à 2 allures
G94: =IF($E$64<1,"-","Chaudière 1") -> Chaudière 1 | H94: =IF($E$64<2,"-","Chaudière 2") -> - | I94: =IF($E$64<3,"-","Chaudière 3") -> - | J94: =IF($E$64<4,"-","Chaudière 4") -> -
E95: Type de chaudière : | O95: 1 | P95: 1 | Q95: 1 | R95: 1
E97: Année de fabrication de la chaudière : | G97: 1980 | H97: 1980
E98: Isolation de la chaudière : | O98: 1 | P98: 2 | Q98: 1 | R98: 2
H101: Pertes balayage : | J101: 1 | K101: %
H102: Mauvaise isolation : | J102: 0.75 | K102: %
H103: Facteur perte ambiance si mauvaise isolation : | J103: 1
C105: Si brûleur fuel pulsé : | E105: Puissance nominale : | K105: kW | O105: FALSE | P105: FALSE | Q105: FALSE | R105: FALSE
E106: Pression d'alimentation allure 1 : | K106: bars | O106: FALSE | P106: FALSE | Q106: FALSE | R106: FALSE
E107: Calibre gicleur allure 1 : | K107: gal/h
E108: Débit de fuel allure 1 : | G108: =IF(OR(Données!B5<>3,O95<>1),"-",ROUND(3.78*G107*(G106/6.89)^0.5,1)) -> - | H108: =IF(OR(H94="-",Données!B5<>3,P95<>1),"-",ROUND(3.78*H107*(H106/6.89)^0.5,1)) -> - | I108: =IF(OR(I94="-",Données!B5<>3,Q95<>1),"-",ROUND(3.78*I107*(I106/6.89)^0.5,1)) -> - | J108: =IF(OR(J94="-",Données!B5<>3,R95<>1),"-",ROUND(3.78*J107*(J106/6.89)^0.5,1)) -> - | K108: litres/h
E109: Puissance réelle allure 1 : | G109: =IF(OR(Données!B5<>3,O95<>1),"-",G108*Données!J5) -> - | H109: =IF(OR(H94="-",Données!B5<>3,P95<>1),"-",H108*Données!J5) -> - | I109: =IF(OR(I94="-",Données!B5<>3,Q95<>1),"-",I108*Données!J5) -> - | J109: =IF(OR(J94="-",Données!B5<>3,R95<>1),"-",J108*Données!J5) -> - | K109: kW
E110: Pression d'alimentation allure 2 : | K110: bars | O110: FALSE | P110: FALSE | Q110: FALSE | R110: FALSE
E111: Calibre gicleur allure 2 : | K111: gal/h
E112: Débit de fuel allure 2 : | G112: =IF(OR(Données!B5<>3,O95<>1),"-",ROUND(3.78*G111*(G110/6.89)^0.5,1)) -> - | H112: =IF(OR(H94="-",Données!B5<>3,P95<>1),"-",ROUND(3.78*H111*(H110/6.89)^0.5,1)) -> - | I112: =IF(OR(I94="-",Données!B5<>3,Q95<>1),"-",ROUND(3.78*I111*(I110/6.89)^0.5,1)) -> - | J112: =IF(OR(J94="-",Données!B5<>3,R95<>1),"-",ROUND(3.78*J111*(J110/6.89)^0.5,1)) -> - | K112: litres/h
E113: Puissance réelle allure 2 : | G113: =IF(OR(Données!B5<>3,O95<>1),"-",G112*Données!J5) -> - | H113: =IF(OR(H94="-",Données!B5<>3,P95<>1),"-",H112*Données!J5) -> - | I113: =IF(OR(I94="-",Données!B5<>3,Q95<>1),"-",I112*Données!J5) -> - | J113: =IF(OR(J94="-",Données!B5<>3,R95<>1),"-",J112*Données!J5) -> - | K113: kW
E114: Rendement combustion allure 1 : | K114: %
E115: Rendement combustion allure 2 : | K115: %
E116: Puissance chaudière : | G116: =IF(OR(Données!B5<>3,O95<>1),"-",IF(O110,G113,IF(AND($P$82=1,G109<>0),G109,IF(O105,G105,"données manquantes")))) -> - | H116: =IF(OR(H94="-",Données!B5<>3,P95<>1),"-",IF(P110,H113,IF(AND($P$82=1,H109<>0),H109,IF(P105,H105,"données manquantes")))) -> - | I116: =IF(OR(I94="-",Données!B5<>3,Q95<>1),"-",IF(Q110,I113,IF(AND($P$82=1,I109<>0),I109,IF(Q105,I105,"données manquantes")))) -> - | J116: =IF(OR(J94="-",Données!B5<>3,R95<>1),"-",IF(R110,J113,IF(AND($P$82=1,J109<>0),J109,IF(R105,J105,"données manquantes")))) -> - | K116: kW
E117: Puissance brûleur allure 1 : | G117: =IF(OR(Données!B5<>3,O95<>1),"-",IF($P$82=1,G116,IF(O106,G109,IF(O105,G105*0.6,"données manquantes")))) -> - | H117: =IF(OR(H94="-",Données!B5<>3,P95<>1),"-",IF($P$82=1,H116,IF(P106,H109,IF(P105,H105*0.6,"données manquantes")))) -> - | I117: =IF(OR(I94="-",Données!B5<>3,Q95<>1),"-",IF($P$82=1,I116,IF(Q106,I109,IF(Q105,I105*0.6,"données manquantes")))) -> - | J117: =IF(OR(J94="-",Données!B5<>3,R95<>1),"-",IF($P$82=1,J116,IF(R106,J109,IF(R105,J105*0.6,"données manquantes")))) -> - | K117: kW
E118: Puissance brûleur allure 2 : | G118: =IF(OR(Données!B5<>3,O95<>1),"-",IF($P$82=1,"-",IF(O110,G113,IF(O105,G105,"données manquantes")))) -> - | H118: =IF(OR(H94="-",Données!B5<>3,P95<>1),"-",IF($P$82=1,"-",IF(P110,H113,IF(P105,H105,"données manquantes")))) -> - | I118: =IF(OR(I94="-",Données!B5<>3,Q95<>1),"-",IF($P$82=1,"-",IF(Q110,I113,IF(Q105,I105,"données manquantes")))) -> - | J118: =IF(OR(J94="-",Données!B5<>3,R95<>1),"-",IF($P$82=1,"-",IF(R110,J113,IF(R105,J105,"données manquantes")))) -> - | K118: kW
E119: Coeff perte arrêt à 70°C : | G119: =IF(OR(Données!B5<>3,O95<>1),"-",100*Données!B92*G116^Données!B93) -> - | H119: =IF(OR(H94="-",Données!B5<>3,P95<>1),"-",100*Données!C92*H116^Données!C93) -> - | I119: =IF(OR(I94="-",Données!B5<>3,Q95<>1),"-",100*Données!D92*I116^Données!D93) -> - | J119: =IF(OR(J94="-",Données!B5<>3,R95<>1),"-",100*Données!E92*J116^Données!E93) -> - | K119: %
E120: Coeff perte arrêt majoré isolation : | G120: =IF(OR(Données!B5<>3,O95<>1),"-",IF(O98=1,G119,G119+$J$102)) -> - | H120: =IF(OR(H94="-",Données!B5<>3,P95<>1),"-",IF(P98=1,H119,H119+$J$102)) -> - | I120: =IF(OR(I94="-",Données!B5<>3,Q95<>1),"-",IF(Q98=1,I119,I119+$J$102)) -> - | J120: =IF(OR(J94="-",Données!B5<>3,R95<>1),"-",IF(R98=1,J119,J119+$J$102)) -> - | K120: %
E121: Clapet d'admission d'air : | O121: 2 | P121: 2 | Q121: 2 | R121: 2
E123: Coeff perte arrêt majoré balayage : | G123: =IF(OR(Données!B5<>3,O95<>1),"-",IF(O121=1,G120+J101,G120)) -> - | H123: =IF(OR(H94="-",Données!B5<>3,P95<>1),"-",IF(P121=1,H120+J101,H120)) -> - | I123: =IF(OR(I94="-",Données!B5<>3,Q95<>1),"-",IF(Q121=1,I120+J101,I120)) -> - | J123: =IF(OR(J94="-",Données!B5<>3,R95<>1),"-",IF(R121=1,J120+J101,J120)) -> - | K123: %
E124: Coeff perte arrêt corr régulation T° : | G124: =IF(OR(Données!B5<>3,O95<>1),"-",G123*$I$86) -> - | H124: =IF(OR(H94="-",Données!B5<>3,P95<>1),"-",H123*$I$86) -> - | I124: =IF(OR(I94="-",Données!B5<>3,Q95<>1),"-",I123*$I$86) -> - | J124: =IF(OR(J94="-",Données!B5<>3,R95<>1),"-",J123*$I$86) -> - | K124: %
E125: Coeff perte ambiance : | G125: =IF(OR(Données!B5<>3,O95<>1),"-",IF(O98=1,G120*$I$86,G120*$I$86*$J$103)) -> - | H125: =IF(OR(H94="-",Données!B5<>3,P95<>1),"-",IF(P98=1,H120*$I$86,H120*$I$86*$J$103)) -> - | I125: =IF(OR(I94="-",Données!B5<>3,Q95<>1),"-",IF(Q98=1,I120*$I$86,I120*$I$86*$J$103)) -> - | J125: =IF(OR(J94="-",Données!B5<>3,R95<>1),"-",IF(R98=1,J120*$I$86,J120*$I$86*$J$103)) -> - | K125: %
E127: Chaudière à condensation : | O127: 2 | P127: 2 | Q127: 2 | R127: 2
E129: Température moyenne de retour : | O129: 3 | P129: 3 | Q129: 3 | R129: 3
E130: Rendement de combustion par défaut : | G130: =IF(OR(Données!B5<>3,O95<>1),"-",IF(O127=2,"-",IF(O129=1,100,96))) -> - | H130: =IF(OR(H94="-",Données!B5<>3,P95<>1),"-",IF(P127=2,"-",IF(P129=1,100,96))) -> - | I130: =IF(OR(I94="-",Données!B5<>3,Q95<>1),"-",IF(Q127=2,"-",IF(Q129=1,100,96))) -> - | J130: =IF(OR(J94="-",Données!B5<>3,R95<>1),"-",IF(R127=2,"-",IF(R129=1,100,96))) -> - | K130: %
C133: Si brûleur gaz pulsé : | E133: Puissance nominale : | K133: kW | O133: FALSE | P133: FALSE | Q133: FALSE | R133: FALSE
E134: Puissance brûleur allure 1 : | G134: =IF(OR(Données!B5=3,O95<>2),"-",IF($P$82=1,G133,IF($P$82=2,G133*0.6,"données manquantes"))) -> - | H134: =IF(OR(H94="-",Données!B5=3,P95<>2),"-",IF($P$82=1,H133,IF($P$82=2,H133*0.6,"données manquantes"))) -> - | I134: =IF(OR(I94="-",Données!B5=3,Q95<>2),"-",IF($P$82=1,I133,IF($P$82=2,I133*0.6,"données manquantes"))) -> - | J134: =IF(OR(J94="-",Données!B5=3,R95<>2),"-",IF($P$82=1,J133,IF($P$82=2,J133*0.6,"données manquantes"))) -> - | K134: kW
E135: Puissance brûleur allure 2 : | G135: =IF(OR(Données!B5=3,O95<>2),"-",IF($P$82=1,"-",IF($P$82=2,G133,"données manquantes"))) -> - | H135: =IF(OR(H94="-",Données!B5=3,P95<>2),"-",IF($P$82=1,"-",IF($P$82=2,H133,"données manquantes"))) -> - | I135: =IF(OR(I94="-",Données!B5=3,Q95<>2),"-",IF($P$82=1,"-",IF($P$82=2,I133,"données manquantes"))) -> - | J135: =IF(OR(J94="-",Données!B5=3,R95<>2),"-",IF($P$82=1,"-",IF($P$82=2,J133,"données manquantes"))) -> - | K135: kW
E136: Rendement combustion allure 1 : | K136: %
E137: Rendement combustion allure 2 : | K137: %
E138: Coeff perte arrêt à 70°C : | G138: =IF(OR(Données!B5=3,O95<>2),"-",100*Données!B92*G133^Données!B93) -> - | H138: =IF(OR(H94="-",Données!B5=3,P95<>2),"-",100*Données!C92*H133^Données!C93) -> - | I138: =IF(OR(I94="-",Données!B5=3,Q95<>2),"-",100*Données!D92*I133^Données!D93) -> - | J138: =IF(OR(J94="-",Données!B5=3,R95<>2),"-",100*Données!E92*J133^Données!E93) -> - | K138: %
E139: Coeff perte arrêt majoré isolation : | G139: =IF(OR(Données!B5=3,O95<>2),"-",IF(O98=1,G138,G138+$J$102)) -> - | H139: =IF(OR(H94="-",Données!B5=3,P95<>2),"-",IF(P98=1,H138,H138+$J$102)) -> - | I139: =IF(OR(I94="-",Données!B5=3,Q95<>2),"-",IF(Q98=1,I138,I138+$J$102)) -> - | J139: =IF(OR(J94="-",Données!B5=3,R95<>2),"-",IF(R98=1,J138,J138+$J$102)) -> - | K139: %
E140: Clapet d'admission d'air : | O140: 1 | P140: 1 | Q140: 2 | R140: 2
E141: Coeff perte arrêt majoré balayage : | G141: =IF(OR(Données!B5=3,O95<>2),"-",IF(O140=1,G139+J101,G139)) -> - | H141: =IF(OR(H94="-",Données!B5=3,P95<>2),"-",IF(P140=1,H139+J101,H139)) -> - | I141: =IF(OR(I94="-",Données!B5=3,Q95<>2),"-",IF(Q140=1,I139+J101,I139)) -> - | J141: =IF(OR(J94="-",Données!B5=3,R95<>2),"-",IF(R140=1,J139+J101,J139)) -> - | K141: %
E142: Coeff perte arrêt corr régulation T° : | G142: =IF(OR(Données!B5=3,O95<>2),"-",G141*$I$86) -> - | H142: =IF(OR(H94="-",Données!B5=3,P95<>2),"-",H141*$I$86) -> - | I142: =IF(OR(I94="-",Données!B5=3,Q95<>2),"-",I141*$I$86) -> - | J142: =IF(OR(J94="-",Données!B5=3,R95<>2),"-",J141*$I$86) -> - | K142: %
E143: Coeff perte ambiance : | G143: =IF(OR(Données!B5=3,O95<>2),"-",IF(O98=1,G139*$I$86,G139*$I$86*$J$103)) -> - | H143: =IF(OR(H94="-",Données!B5=3,P95<>2),"-",IF(P98=1,H139*$I$86,H139*$I$86*$J$103)) -> - | I143: =IF(OR(I94="-",Données!B5=3,Q95<>2),"-",IF(Q98=1,I139*$I$86,I139*$I$86*$J$103)) -> - | J143: =IF(OR(J94="-",Données!B5=3,R95<>2),"-",IF(R98=1,J139*$I$86,J139*$I$86*$J$103)) -> - | K143: %
E145: Chaudière à condensation : | O145: 2 | P145: 2 | Q145: 1 | R145: 2
E147: Température moyenne de retour : | O147: 3 | P147: 3 | Q147: 3 | R147: 3
E148: Rendement de combustion par défaut : | G148: =IF(OR(Données!B5=3,O95<>2),"-",IF(O145=2,"-",IF(O147=1,104,IF(O147=2,100,96)))) -> - | H148: =IF(OR(H94="-",Données!B5=3,P95<>2),"-",IF(P145=2,"-",IF(P147=1,104,IF(P147=2,100,96)))) -> - | I148: =IF(OR(I94="-",Données!B5=3,Q95<>2),"-",IF(Q145=2,"-",IF(Q147=1,104,IF(Q147=2,100,96)))) -> - | J148: =IF(OR(J94="-",Données!B5=3,R95<>2),"-",IF(R145=2,"-",IF(R147=1,104,IF(R147=2,100,96)))) -> - | K148: %
C151: Si brûleur gaz atmosphérique : | E151: Débit de gaz allure 1 : | K151: m³/h | O151: FALSE | P151: FALSE | Q151: FALSE | R151: FALSE
E152: Débit de gaz allure 2 : | K152: m³/h | O152: FALSE | P152: FALSE | Q152: FALSE | R152: FALSE
E153: Puissance brute allure 1 : | G153: =IF(OR(Données!B5=3,O95<>3),"-",G151*Données!J5) -> - | H153: =IF(OR(H94="-",Données!B5=3,P95<>3),"-",H151*Données!J5) -> - | I153: =IF(OR(I94="-",Données!B5=3,Q95<>3),"-",I151*Données!J5) -> - | J153: =IF(OR(J94="-",Données!B5=3,R95<>3),"-",J151*Données!J5) -> - | K153: kW
E154: Puissance brute allure 2 : | G154: =IF(OR(Données!B5=3,O95<>3),"-",G152*Données!J5) -> - | H154: =IF(OR(H94="-",Données!B5=3,P95<>3),"-",H152*Données!J5) -> - | I154: =IF(OR(I94="-",Données!B5=3,Q95<>3),"-",I152*Données!J5) -> - | J154: =IF(OR(J94="-",Données!B5=3,R95<>3),"-",J152*Données!J5) -> - | K154: kW
E155: Puissance brute allure 1 : | K155: kW | O155: FALSE | P155: FALSE | Q155: FALSE | R155: FALSE
E156: Puissance brute allure 2 : | K156: kW | O156: FALSE | P156: FALSE | Q156: FALSE | R156: FALSE
E157: Puissance nette allure 1 : | K157: kW | O157: FALSE | P157: FALSE | Q157: FALSE | R157: FALSE
E158: Puissance nette allure 2 : | K158: kW | O158: FALSE | P158: FALSE | Q158: FALSE | R158: FALSE
E159: Rend utile plaque allure 1 : | G159: =IF(OR(Données!B5=3,O95<>3),"-",IF(AND(O157,O151),100*G157/G153,IF(AND(O157,O155),100*G157/G155,"Valeur par défaut"))) -> - | H159: =IF(OR(H94="-",Données!B5=3,P95<>3),"-",IF(AND(P157,P151),100*H157/H153,IF(AND(P157,P155),100*H157/H155,"Valeur par défaut"))) -> - | I159: =IF(OR(I94="-",Données!B5=3,Q95<>3),"-",IF(AND(Q157,Q151),100*I157/I153,IF(AND(Q157,Q155),100*I157/I155,"Valeur par défaut"))) -> - | J159: =IF(OR(J94="-",Données!B5=3,R95<>3),"-",IF(AND(R157,R151),100*J157/J153,IF(AND(R157,R155),100*J157/J155,"Valeur par défaut"))) -> - | K159: %
E160: Rend utile plaque allure 2 : | G160: =IF(OR(Données!B5=3,O95<>3),"-",IF($P$82=1,"-",IF(AND(O158,O151),100*G158/G154,IF(AND(O158,O155),100*G158/G156,"Valeur par défaut")))) -> - | H160: =IF(OR(H94="-",Données!B5=3,P95<>3),"-",IF($P$82=1,"-",IF(AND(P158,P151),100*H158/H154,IF(AND(P158,P155),100*H158/H156,"Valeur par défaut")))) -> - | I160: =IF(OR(I94="-",Données!B5=3,Q95<>3),"-",IF($P$82=1,"-",IF(AND(Q158,Q151),100*I158/I154,IF(AND(Q158,Q155),100*I158/I156,"Valeur par défaut")))) -> - | J160: =IF(OR(J94="-",Données!B5=3,R95<>3),"-",IF($P$82=1,"-",IF(AND(R158,R151),100*J158/J154,IF(AND(R158,R155),100*J158/J156,"Valeur par défaut")))) -> - | K160: %
E161: Rend de comb par défaut allure 1 : | G161: =IF(OR(Données!B5=3,O95<>3),"-",INDEX(Données!$B$45:$B$47,MATCH(G97,Données!$A$45:$A$47,-1),1)-1) -> - | H161: =IF(OR(H94="-",Données!B5=3,P95<>3),"-",INDEX(Données!$B$45:$B$47,MATCH(H97,Données!$A$45:$A$47,-1),1)-1) -> - | I161: =IF(OR(I94="-",Données!B5=3,Q95<>3),"-",INDEX(Données!$B$45:$B$47,MATCH(I97,Données!$A$45:$A$47,-1),1)-1) -> - | J161: =IF(OR(J94="-",Données!B5=3,R95<>3),"-",INDEX(Données!$B$45:$B$47,MATCH(J97,Données!$A$45:$A$47,-1),1)-1) -> - | K161: %
E162: Rend de comb par défaut allure 2 : | G162: =IF(OR(Données!B5=3,O95<>3),"-",INDEX(Données!$B$45:$B$47,MATCH('Calcul du rendement'!G$97,Données!$A$45:$A$47,-1),1)) -> - | H162: =IF(OR(H94="-",Données!B5=3,P95<>3),"-",INDEX(Données!$B$45:$B$47,MATCH('Calcul du rendement'!H$97,Données!$A$45:$A$47,-1),1)) -> - | I162: =IF(OR(I94="-",Données!B5=3,Q95<>3),"-",INDEX(Données!$B$45:$B$47,MATCH(I97,Données!$A$45:$A$47,-1),1)) -> - | J162: =IF(OR(J94="-",Données!B5=3,R95<>3),"-",INDEX(Données!$B$45:$B$47,MATCH('Calcul du rendement'!J$97,Données!$A$45:$A$47,-1),1)) -> - | K162: %
E163: Rend de comb allure 1 : | G163: =IF(OR(Données!B5=3,O95<>3),"-",IF(G159="Valeur par défaut",G161,G159+G$168)) -> - | H163: =IF(OR(H94="-",Données!B5=3,P95<>3),"-",IF(H159="Valeur par défaut",H161,H159+H$168)) -> - | I163: =IF(OR(I94="-",Données!B5=3,Q95<>3),"-",IF(I159="Valeur par défaut",I161,I159+I$168)) -> - | J163: =IF(OR(J94="-",Données!B5=3,R95<>3),"-",IF(J159="Valeur par défaut",J161,J159-J$168)) -> - | K163: %
E164: Rend de comb allure 2 : | G164: =IF(OR(Données!B5=3,O95<>3),"-",IF($P$82=1,"-",IF(G160="Valeur par défaut",G162,G160+G$168))) -> - | H164: =IF(OR(H94="-",Données!B5=3,P95<>3),"-",IF($P$82=1,"-",IF(H160="Valeur par défaut",H162,H160+H$168))) -> - | I164: =IF(OR(I94="-",Données!B5=3,Q95<>3),"-",IF($P$82=1,"-",IF(I160="Valeur par défaut",I162,I160+I$168))) -> - | J164: =IF(OR(J94="-",Données!B5=3,R95<>3),"-",IF($P$82=1,"-",IF(J160="Valeur par défaut",J162,J160-J$168))) -> - | K164: %
E165: Puissance chaudière : | G165: =IF(OR(Données!B5=3,O95<>3),"-",IF(O152,G154,IF(O156,G156,IF($P$82=1,IF(O151,G153,IF(O155,G155,"données manquantes")))))) -> - | H165: =IF(OR(H94="-",Données!B5=3,P95<>3),"-",IF(P152,H154,IF(P156,H156,IF($P$82=1,IF(P151,H153,IF(P155,H155,"données manquantes")))))) -> - | I165: =IF(OR(I94="-",Données!B5=3,Q95<>3),"-",IF(Q152,I154,IF(Q156,I156,IF($P$82=1,IF(Q151,I153,IF(Q155,I155,"données manquantes")))))) -> - | J165: =IF(OR(J94="-",Données!B5=3,R95<>3),"-",IF(R152,J154,IF(R156,J156,IF($P$82=1,IF(R151,J153,IF(R155,J155,"données manquantes")))))) -> - | K165: kW
E166: Puissance brûleur allure 1 : | G166: =IF(OR(Données!B5=3,O95<>3),"-",IF($P$82=1,G165,IF(O151,G153,IF(O155,G155,"-")))) -> - | H166: =IF(OR(H94="-",Données!B5=3,P95<>3),"-",IF($P$82=1,H165,IF(P151,H153,IF(P155,H155,"-")))) -> - | I166: =IF(OR(I94="-",Données!B5=3,Q95<>3),"-",IF($P$82=1,I165,IF(Q151,I153,IF(Q155,I155,"-")))) -> - | J166: =IF(OR(J94="-",Données!B5=3,R95<>3),"-",IF($P$82=1,J165,IF(R151,J155,IF(R155,J155,"-")))) -> - | K166: kW
E167: Puissance brûleur allure 2 : | G167: =IF(OR(Données!B5=3,O95<>3),"-",IF($P$82=1,"-",IF(O152,G154,IF(O156,G156,"données manquantes")))) -> - | H167: =IF(OR(H94="-",Données!B5=3,P95<>3),"-",IF($P$82=1,"-",IF(P152,H154,IF(P156,H156,"données manquantes")))) -> - | I167: =IF(OR(I94="-",Données!B5=3,Q95<>3),"-",IF($P$82=1,"-",IF(Q152,I154,IF(Q156,I156,"données manquantes")))) -> - | J167: =IF(OR(J94="-",Données!B5=3,R95<>3),"-",IF($P$82=1,"-",IF(R152,J154,IF(R156,J156,"données manquantes")))) -> - | K167: kW
E168: Coeff perte arrêt à 70°C : | G168: =IF(OR(Données!B5=3,O95<>3),"-",(100*Données!B92*G165^Données!B93)+0.7) -> - | H168: =IF(OR(H94="-",Données!B5=3,P95<>3),"-",(100*Données!C92*H165^Données!C93)+0.7) -> - | I168: =IF(OR(I94="-",Données!B5=3,Q95<>3),"-",(100*Données!D92*I165^Données!D93)+0.7) -> - | J168: =IF(OR(J94="-",Données!B5=3,R95<>3),"-",(100*Données!E92*J165^Données!E93)+0.7) -> - | K168: %
E169: Coeff perte arrêt majoré isolation : | G169: =IF(OR(Données!B5=3,O95<>3),"-",IF(O98=1,G168,G168+$J$102)) -> - | H169: =IF(OR(H94="-",Données!B5=3,P95<>3),"-",IF(P98=1,H168,H168+$J$102)) -> - | I169: =IF(OR(I94="-",Données!B5=3,Q95<>3),"-",IF(Q98=1,I168,I168+$J$102)) -> - | J169: =IF(OR(J94="-",Données!B5=3,R95<>3),"-",IF(R98=1,J168,J168+$J$102)) -> - | K169: %
E170: Coeff perte arrêt corr régulation T° : | G170: =IF(OR(Données!B5=3,O95<>3),"-",G169*$I$86) -> - | H170: =IF(OR(H94="-",Données!B5=3,P95<>3),"-",H169*$I$86) -> - | I170: =IF(OR(I94="-",Données!B5=3,Q95<>3),"-",I169*$I$86) -> - | J170: =IF(OR(J94="-",Données!B5=3,R95<>3),"-",J169*$I$86) -> - | K170: %
E171: Coeff perte ambiance : | G171: =IF(OR(Données!B5=3,O95<>3),"-",IF(O98=1,G170,G170*$J$103)) -> - | H171: =IF(OR(H94="-",Données!B5=3,P95<>3),"-",IF(P98=1,H170,H170*$J$103)) -> - | I171: =IF(OR(I94="-",Données!B5=3,Q95<>3),"-",IF(Q98=1,I170,I170*$J$103)) -> - | J171: =IF(OR(J94="-",Données!B5=3,R95<>3),"-",IF(R98=1,J170,J170*$J$103)) -> - | K171: %
B174: RECAPITULATIF | G174: Chaudière 1 | H174: =IF($E$64<2,"-","Chaudière 2") -> - | I174: =IF($E$64<3,"-","Chaudière 3") -> - | J174: =IF($E$64<4,"-","Chaudière 4") -> - | K174: Total
E175: Puissance : | G175: =IF(AND(O95=1,G94="chaudière 1"),G116,IF(AND(O95=2,G94="chaudière 1"),G133,IF(AND(O95=3,G94="chaudière 1"),G165,IF(G94="-","-","données manquantes")))) -> - | H175: =IF(AND(P95=1,H94="chaudière 2"),H116,IF(AND(P95=2,H94="chaudière 2"),H133,IF(AND(P95=3,H94="chaudière 2"),H165,IF(H94="-","-","données manquantes")))) -> - | I175: =IF(AND(Q95=1,I94="chaudière 3"),I116,IF(AND(Q95=2,I94="chaudière 3"),I133,IF(AND(Q95=3,I94="chaudière 3"),I165,IF(I94="-","-","données manquantes")))) -> - | J175: =IF(AND(R95=1,J94="chaudière 4"),J116,IF(AND(R95=2,J94="chaudière 4"),J133,IF(AND(R95=3,J94="chaudière 4"),J165,IF(J94="-","-","données manquantes")))) -> - | K175: =SUM(G175:J175) -> 0 | L175: kW
E176: Puissance brûleur allure 1 : | G176: =IF(AND(O95=1,G94="chaudière 1"),G117,IF(AND(O95=2,G94="chaudière 1"),G134,IF(AND(O95=3,G94="chaudière 1"),G166,"-"))) -> - | H176: =IF(AND(P95=1,H94="chaudière 2"),H117,IF(AND(P95=2,H94="chaudière 2"),H134,IF(AND(P95=3,H94="chaudière 2"),H166,"-"))) -> - | I176: =IF(AND(Q95=1,I94="chaudière 3"),I117,IF(AND(Q95=2,I94="chaudière 3"),I134,IF(AND(Q95=3,I94="chaudière 3"),I166,"-"))) -> - | J176: =IF(AND(R95=1,J94="chaudière 4"),J117,IF(AND(R95=2,J94="chaudière 4"),J134,IF(AND(R95=3,J94="chaudière 4"),J166,"-"))) -> - | K176: kW
E177: Puissance brûleur allure 2 : | G177: =IF(AND(O95=1,G94="chaudière 1"),G118,IF(AND(O95=2,G94="chaudière 1"),G135,IF(AND(O95=3,G94="chaudière 1"),G167,IF($P$82=1,"-","données manquantes")))) -> - | H177: =IF(AND(P95=1,H94="chaudière 2"),H118,IF(AND(P95=2,H94="chaudière 2"),H135,IF(AND(P95=3,H94="chaudière 2"),H167,IF($P$82=1,"-","-")))) -> - | I177: =IF(AND(Q95=1,I94="chaudière 3"),I118,IF(AND(Q95=2,I94="chaudière 3"),I135,IF(AND(Q95=3,I94="chaudière 3"),I167,IF($P$82=1,"-","-")))) -> - | J177: =IF(AND(R95=1,J94="chaudière 4"),J118,IF(AND(R95=2,J94="chaudière 4"),J135,IF(AND(R95=3,J94="chaudière 4"),J167,IF($P$82=1,"-","-")))) -> - | K177: kW
E178: Rendement de comb allure 1 : | G178: =IF(AND(O95=1,G94="chaudière 1"),IF(O127=1,G130,IF(AND($P$82=2,G114=""),G115+2,G114)),IF(AND(O95=2,G94="chaudière 1"),IF(O145=1,G148,IF(AND($P$82=2,G136=""),G137+2,G136)),IF(AND(O95=3,G94="chaudière 1"),IF(O157,G163,G161),"-"))) -> 0 | H178: =IF(AND(P95=1,H94="chaudière 2"),IF(P127=1,H130,IF(AND($P$82=2,H114=""),H115+2,H114)),IF(AND(P95=2,H94="chaudière 2"),IF(P145=1,H148,IF(AND($P$82=2,H136=""),H137+2,H136)),IF(AND(P95=3,H94="chaudière 2"),IF(P157,H163,H161),"-"))) -> - | I178: =IF(AND(Q95=1,I94="chaudière 3"),IF(Q127=1,I130,IF(AND($P$82=2,I114=""),I115+2,I114)),IF(AND(Q95=2,I94="chaudière 3"),IF(Q145=1,I148,IF(AND($P$82=2,I136=""),I137+2,I136)),IF(AND(Q95=3,I94="chaudière 3"),IF(Q157,I163,I161),"-"))) -> - | J178: =IF(AND(R95=1,J94="chaudière 4"),IF(R127=1,J130,IF(AND($P$82=2,J114=""),J115+2,J114)),IF(AND(R95=2,J94="chaudière 4"),IF(R145=1,J148,IF(AND($P$82=2,J136=""),J137+2,J136)),IF(AND(R95=3,J94="chaudière 4"),IF(R157,J163,J161),"-"))) -> - | K178: %
E179: Rendement de comb allure 2 : | G179: =IF($P$82=1,"-",IF(AND(O95=1,G94="chaudière 1"),IF(O127=1,G130,G115),IF(AND(O95=2,G94="chaudière 1"),IF(O145=1,G148,G137),IF(AND(O95=3,G94="chaudière 1"),IF(O158,G164,G162),"données manquantes")))) -> - | H179: =IF($P$82=1,"-",IF(AND(P95=1,H94="chaudière 2"),IF(P127=1,H130,H115),IF(AND(P95=2,H94="chaudière 2"),IF(P145=1,H148,H137),IF(AND(P95=3,H94="chaudière 2"),IF(P158,H164,H162),"-")))) -> - | I179: =IF($P$82=1,"-",IF(AND(Q95=1,I94="chaudière 3"),IF(Q127=1,I130,I115),IF(AND(Q95=2,I94="chaudière 3"),IF(Q145=1,I148,I137),IF(AND(Q95=3,I94="chaudière 3"),IF(Q158,I164,I162),"-")))) -> - | J179: =IF($P$82=1,"-",IF(AND(R95=1,J94="chaudière 4"),IF(R127=1,J130,J115),IF(AND(R95=2,J94="chaudière 4"),IF(R145=1,J148,J137),IF(AND(R95=3,J94="chaudière 4"),IF(R158,J164,J162),"-")))) -> - | K179: %
E180: Rendement utile allure 1 : | G180: =IF(G94="-","-",G178-G183) ->  | H180: =IF(H94="-","-",H178-H183) -> - | I180: =IF(I94="-","-",I178-I183) -> - | J180: =IF(J94="-","-",J178-J183) -> - | K180: %
E181: Rendement utile allure 2 : | G181: =IF($P$82=1,"-",G179-G183) -> - | H181: =IF(H174="-","-",IF($P$82=1,"-",H179-H183)) -> - | I181: =IF(I174="-","-",IF($P$82=1,"-",I179-I183)) -> - | J181: =IF(J174="-","-",IF($P$82=1,"-",J179-J183)) -> - | K181: %
E182: Coeff perte arrêt : | G182: =IF(AND(O95=1,G94="chaudière 1"),G123,IF(AND(O95=2,G94="chaudière 1"),G141,IF(AND(O95=3,G94="chaudière 1"),G170,"-"))) -> - | H182: =IF(AND(P95=1,H94="chaudière 2"),H123,IF(AND(P95=2,H94="chaudière 2"),H141,IF(AND(P95=3,H94="chaudière 2"),H170,"-"))) -> - | I182: =IF(AND(Q95=1,I94="chaudière 3"),I123,IF(AND(Q95=2,I94="chaudière 3"),I141,IF(AND(Q95=3,I94="chaudière 3"),I170,"-"))) -> - | J182: =IF(AND(R95=1,J94="chaudière 4"),J123,IF(AND(R95=2,J94="chaudière 4"),J141,IF(AND(R95=3,J94="chaudière 4"),J170,"-"))) -> - | K182: %
E183: Coeff perte ambiance : | G183: =IF(AND(O95=1,G94="chaudière 1"),G125,IF(AND(O95=2,G94="chaudière 1"),G143,IF(AND(O95=3,G94="chaudière 1"),G171,"-"))) -> - | H183: =IF(AND(P95=1,H94="chaudière 2"),H125,IF(AND(P95=2,H94="chaudière 2"),H143,IF(AND(P95=3,H94="chaudière 2"),H171,"-"))) -> - | I183: =IF(AND(Q95=1,I94="chaudière 3"),I125,IF(AND(Q95=2,I94="chaudière 3"),I143,IF(AND(Q95=3,I94="chaudière 3"),I171,"-"))) -> - | J183: =IF(AND(R95=1,J94="chaudière 4"),J125,IF(AND(R95=2,J94="chaudière 4"),J143,IF(AND(R95=3,J94="chaudière 4"),J171,"-"))) -> - | K183: %
B186: Calcul du temps de fonctionnement des brûleurs pour chaque allure
B188: Répartition des puissances :
F190: Puissances installées [kW]
E191: Chaudière 1 | F191: =IF($E$64<2,"-","Chaudière 2") -> - | G191: =IF($E$64<3,"-","Chaudière 3") -> - | H191: =IF($E$64<4,"-","Chaudière 4") -> -
D192: Allure 1 du brûleur | E192: =G261 ->  | F192: 0 | G192: 0 | H192: 0
D193: =IF(Données!B27=2,"Allure 2 du brûleur","-") -> - | E193: 0 | F193: 0 | G193: 0 | H193: 0
F195: Energie consommée | H195: Durée de fonctionnement
C196: Allure | F196: par chaque allure | H196: du brûleur à chaque allure
F197: [kWh/an] | H197: [heures/an]
C199: =B349 -> - Chaudière 1 | F199: =IF(Données!$B$33=1,INDEX(C349:J349,1,Données!$B$27),INDEX(C349:J349,1,'Calcul du rendement'!F264)) -> 49605 | H199: =IF(Données!$B$33=1,INDEX(C362:J362,1,Données!$B$27),INDEX(C362:J362,1,'Calcul du rendement'!F264)) -> 
C200: - - | F200: =IF(C200="- -","",IF(Données!$B$33=1,INDEX(C350:J350,1,Données!$B$27),INDEX(C350:J350,1,'Calcul du rendement'!F264))) ->  | H200: =IF(C200="- -","",IF(Données!$B$33=1,INDEX(C363:J363,1,Données!$B$27),INDEX(C363:J363,1,'Calcul du rendement'!F264))) -> 
C201: - - | F201: =IF(C201="- -","",IF(Données!$B$33=1,INDEX(C351:J351,1,Données!$B$27),INDEX(C351:J351,1,'Calcul du rendement'!F264))) ->  | H201: =IF(C201="- -","",IF(Données!$B$33=1,INDEX(C364:J364,1,Données!$B$27),INDEX(C364:J364,1,'Calcul du rendement'!F264))) -> 
C202: - - | F202: =IF(C202="- -","",IF(Données!$B$33=1,INDEX(C352:J352,1,Données!$B$27),INDEX(C352:J352,1,'Calcul du rendement'!F264))) ->  | H202: =IF(C202="- -","",IF(Données!$B$33=1,INDEX(C365:J365,1,Données!$B$27),INDEX(C365:J365,1,'Calcul du rendement'!F264))) -> 
C203: - - | F203: =IF(C203="- -","",IF(Données!$B$33=1,INDEX(C353:J353,1,Données!$B$27),INDEX(C353:J353,1,'Calcul du rendement'!F264))) ->  | H203: =IF(C203="- -","",IF(Données!$B$33=1,INDEX(C366:J366,1,Données!$B$27),INDEX(C366:J366,1,'Calcul du rendement'!F264))) -> 
C204: - - | F204: =IF(C204="- -","",IF(Données!$B$33=1,INDEX(C354:J354,1,Données!$B$27),INDEX(C354:J354,1,'Calcul du rendement'!F264))) ->  | H204: =IF(C204="- -","",IF(Données!$B$33=1,INDEX(C367:J367,1,Données!$B$27),INDEX(C367:J367,1,'Calcul du rendement'!F264))) -> 
C205: - - | F205: =IF(C205="- -","",IF(Données!$B$33=1,INDEX(C355:J355,1,Données!$B$27),INDEX(C355:J355,1,'Calcul du rendement'!F264))) ->  | H205: =IF(C205="- -","",IF(Données!$B$33=1,INDEX(C368:J368,1,Données!$B$27),INDEX(C368:J368,1,'Calcul du rendement'!F264))) -> 
C206: - - | F206: =IF(C206="- -","",IF(Données!$B$33=1,INDEX(C356:J356,1,Données!$B$27),INDEX(C356:J356,1,'Calcul du rendement'!F264))) ->  | H206: =IF(C206="- -","",IF(Données!$B$33=1,INDEX(C369:J369,1,Données!$B$27),INDEX(C369:J369,1,'Calcul du rendement'!F264))) -> 
F208: Durée d'utilisation de chaque chaudière
C209: Chaudière | F209: [heures/an]
C211: - Chaudière 1 | F211: =MAX(H421:H428) -> 5808
C212: =IF(E64>1,"- Chaudière 2","") ->  | F212: =IF(E64>1,IF(Données!B33<3,F211,LARGE(H421:H428,2)),"") -> 
C213: =IF(E64>2,"- Chaudière 3","") ->  | F213: =IF(E64>2,IF(Données!B33<3,F211,LARGE(H421:H428,3)),"") -> 
C214: =IF(E64>3,"- Chaudière 4","") ->  | F214: =IF(E64>3,IF(Données!B33<3,F211,LARGE(H421:H428,4)),"") -> 
C216: On fait l'hypothèse que, dans le cas d'une combinaison de chaudières multiples, la
C217: première chaudière de la cascade est en permanence irriguée. Les autres chaudières à
C218: l'arrêt peuvent être isolées hydrauliquement de l'installation.
B220: Facteur de charge de l'installation (surdimensionnement)
B222: Le facteur de charge est de : | E222: =100*(F28/K175)/E59 ->  | F222: %
D223: Soit : | E223: =F28/K175 ->  | F223: heures de fonctionnement à puissance nominale
B225: Rendement saisonnier de l'installation de production de chaleur
B227: Rendement saisonnier : | D227: =ROUND(IF(Données!B33=3,(D429-E429-M429)/D429*100,(D429-E429-N429)/D429*100),1) ->  | E227: % | F227: (= [consommation - pertes de combustion - pertes à l'arrêt] / consommation)
B230: Economie suite à l'amélioration du rendement saisonnier
B232: Encodez ici le rendement saisonnier calculé avant amélioration : | H232: %
B234: Encodez ici le rendement saisonnier calculé après amélioration : | H234: %
B236: Gain énergétique : | D236: =IF(OR(G232="",G234=""),"",ROUND(F26*(1-G232/G234),0)) ->  | E236: =Données!C11 -> kWh de gaz PCS
B238: Coût unitaire du combustible : | D238: 0.5 | E238: =IF(Données!B11=1,"€/litre de mazout",IF(Données!B11=2,"€/m³ de gaz","€/kWh de gaz")) -> €/kWh de gaz
B240: Gain financier : | D240: =IF(D236="","",ROUND(D236*D238,0)) ->  | E240: €/an
B242: Economie suite au remplacement complet de l'installation de production de chaleur
B244: Si remplacement complet de l'installation de chauffage :
C246: - par une installation fuel ou gaz traditionnelle à brûleur pulsé (rendement saisonnier escompté = ..93..%), l'économie serait de : | I246: =IF(OR(F26="",D227="",D227>93),"-",ROUND(F26*(1-D227/93),0)) ->  | J246: =Données!C11 -> kWh de gaz PCS
I247: =IF(I246="-","-",IF(D238="","Précisez le prix combustible",ROUND(I246*D238,0))) ->  | J247: €/an
C249: - par une installation mazout à condensation à brûleur pulsé (rendement saisonnier escompté = ..98..%), l'économie serait de : | I249: =IF(Données!B5<3,"-",IF(OR(F26="",D227="",D227>98),"-",ROUND(F26*(1-D227/98),0))) -> - | J249: litres de mazout
I250: =IF(I249="-","-",IF(D238="","Précisez le prix combustible",ROUND(I249*D238,0))) -> - | J250: €/an
C252: - par une installation gaz à condensation à brûleur modulant (rendement saisonnier escompté = ..102..%), l'économie serait de : | I252: =IF(OR(F26="",D227="",D227>102),"-",ROUND(F26*(1-D227/102),0)) ->  | J252: =Données!C11 -> kWh de gaz PCS
I253: =IF(I252="-","-",IF(D238="","Précisez le prix combustible",ROUND(I252*D238,0))) ->  | J253: €/an
B256: Calculs des pertes de combustion et des pertes à l'arrêt pour le calcul du rendement saisonnier
B259: Puissance totale installée | D259: =ROUND(K175,0) -> 0 | E259: kW | G259: Puissances installées [kW]
B260: Nombre de chaudières: | D260: =E64 -> 1 | G260: Chaudière 1 | H260: =IF(D260<2,"-","Chaudière 2") -> - | I260: =IF(D260<3,"-","Chaudière 3") -> - | J260: =IF(D260<4,"-","Chaudière 4") -> -
F261: Allure 1 du brûleur | G261: =IF(Données!B33=1,IF(Données!B27=2,ROUND(D259*0.6,0),D259),IF(P82=1,ROUND(G176,0),ROUND(G176,0))) ->  | H261: =IF($D260>1,IF(Données!B33=1,0,IF(P82=1,ROUND(H176,0),ROUND(H176,0))),0) -> 0 | I261: =IF($D260>2,IF(Données!B33=1,0,IF(P82=1,ROUND(I176,0),ROUND(I176,0))),0) -> 0 | J261: =IF($D260>3,IF(Données!B33=1,0,IF(P82=1,ROUND(J176,0),ROUND(J176,0))),0) -> 0
F262: =IF(Données!$B$27=2,"Allure 2 du brûleur","-") -> - | G262: =IF(Données!B33=1,IF(Données!B27=1,0,D259),IF(P82=1,0,ROUND(G177,0))) -> 0 | H262: =IF($D260>1,IF(Données!B33=1,0,IF(P82=1,0,ROUND(H177,0))),0) -> 0 | I262: =IF($D260>2,IF(Données!B33=1,0,IF(P82=1,0,ROUND(I177,0))),0) -> 0 | J262: =IF($D260>3,IF(Données!B33=1,0,IF(P82=1,0,ROUND(J177,0))),0) -> 0
B264: Choix de la combinaison chaudière + brûleur : | F264: =(D260-1)*2+Données!B27 -> 1
B265: Ordre d'enclenchement des étages de puissance : | F265: (chaudière 1 allure 1) - (chaudière 1 allure 2) - (chaudière 2 allure 1) - (chaudière 2 allure 2) - ...
B268: CADRE 1
C269: Présentation des différentes
C270: combinaisons chaudière/brûleur
B271: Combinaison 1 | C271: = 1 chaudière 1 allure
B272: Combinaison 2 | C272: = 1 chaudière 2 allures
B273: Combinaison 3 | C273: = 2 chaudières 1 allure
B274: Combinaison 4 | C274: = 2 chaudières 2 allures
B275: Combinaison 5 | C275: = 3 chaudières 1 allure
B276: Combinaison 6 | C276: = 3 chaudières 2 allures
B277: Combinaison 7 | C277: = 4 chaudières 1 allure
B278: Combinaison 8 | C278: = 4 chaudières 2 allures
B281: CADRE 2 | L281: CADRE 3
B282: Puissance de chacune des allures de chaque chaudière - 8 combinaisons possibles | M282: Puissance brute
C283: Comb1 | D283: Comb2 | E283: Comb3 | F283: Comb4 | G283: Comb5 | H283: Comb6 | I283: Comb7 | J283: Comb8 | M283: de chaque brûleur
B284: 1 | C284: =G261 ->  | D284: =G261 ->  | E284: =G261 ->  | F284: =G261 ->  | G284: =G261 ->  | H284: =G261 ->  | I284: =G261 ->  | J284: =G261 ->  | L284: 1. | M284: =INDEX(C284:J284,1,$F$264) ->  | N284: kW
B285: 2 | C285: 0 | D285: =G262 -> 0 | E285: =H261 -> 0 | F285: =G262 -> 0 | G285: =H261 -> 0 | H285: =G262 -> 0 | I285: =H261 -> 0 | J285: =G262 -> 0 | L285: 2. | M285: 0 | N285: kW
B286: 3 | C286: =C285 -> 0 | D286: 0 | E286: 0 | F286: =H261 -> 0 | G286: =I261 -> 0 | H286: =H261 -> 0 | I286: =I261 -> 0 | J286: =H261 -> 0 | L286: 3. | M286: 0 | N286: kW
B287: 4 | C287: =C286 -> 0 | D287: =D286 -> 0 | E287: 0 | F287: =H262 -> 0 | G287: 0 | H287: =H262 -> 0 | I287: =J261 -> 0 | J287: =H262 -> 0 | L287: 4. | M287: 0 | N287: kW
B288: 5 | C288: =C287 -> 0 | D288: 0 | E288: 0 | F288: 0 | G288: 0 | H288: =I261 -> 0 | I288: 0 | J288: =I261 -> 0 | L288: 5. | M288: 0 | N288: kW
B289: 6 | C289: =C288 -> 0 | D289: 0 | E289: 0 | F289: 0 | G289: 0 | H289: =I262 -> 0 | I289: 0 | J289: =I262 -> 0 | L289: 6. | M289: 0 | N289: kW
B290: 7 | C290: 0 | D290: 0 | E290: 0 | F290: 0 | G290: 0 | H290: 0 | I290: 0 | J290: =J261 -> 0 | L290: 7. | M290: 0 | N290: kW
B291: 8 | C291: 0 | D291: 0 | E291: 0 | F291: 0 | G291: 0 | H291: 0 | I291: 0 | J291: =J262 -> 0 | L291: 8. | M291: 0 | N291: kW
B293: CADRE 4 | L293: CADRE 5
... 125 more rows

Sheet T° retour condensation
B2: Evaluation de la température moyenne de retour pour les chaudières à condensation
B5: Questions d'évaluation
B7: By Pass (bouclage collecteur ou bouteille casse-pression ou présence circuits secondaires équipés de vanne 3 voies diviseuse)
B9: Régulation de la ou des chaudières en température glissante
B11: Régulation des circuits secondaires en température glissante
B13: Température de retour moyenne en °C | C13: =+VLOOKUP(Données!I72,Données!D57:E74,2) -> Inférieure à 45°C

Sheet Fichier météo UCCLE (hidden)
B2: Etablissement de la monotone de chaleur
B4: T° cons jour = | C4: ='Calcul du rendement'!F42 -> 19 | D4: °C | E4: Gain de température pour apports gratuits : | J4: ='Calcul du rendement'!F44 -> 2 | K4: °C | L4: Température extérieure moyenne sur l'année | R4: =SUM(I22:I8781)/8760 -> 9.884486301 | S4: °C
B5: T° cons nuit = | C5: ='Calcul du rendement'!F43 -> 16 | D5: °C | E5: Température de jour effective : | J5: =C4-J4 -> 17 | K5: °C | L5: Température extérieure moyenne saison de chauffe | R5: =(SUM(I22:I3237)+SUM(I6190:I8781))/5800 -> 7.003706897 | S5: °C | T5: soit du 15 septembre au 15 mai
L6: Température extérieure moyenne hors saison de chauffe | R6: =SUM(I3238:I6190)/2960 -> 15.53476351 | S6: °C | T6: soit du 15 mai au 15 septembre
C7: Plage 1 | D7: Plage 2
C8: TRUE | D8: FALSE
B9: Heure début | C9: =IF($C$8,'Calcul du rendement'!F36,0) -> 8 | D9: =IF($D$8,'Calcul du rendement'!$F$37,0) -> 0 | E9: h | G9: Horaire hebdomadaire : | I9: 1
B10: Heure fin | C10: =IF($C$8,'Calcul du rendement'!H36,0) -> 18 | D10: =IF($D$8,'Calcul du rendement'!H37,0) -> 0 | E10: h
B12: Jour arrêt chauffage | D12: ='Calcul du rendement'!E50 -> 15 | G12: Jour début chauffage | I12: ='Calcul du rendement'!E51 -> 15
B13: Mois arrêt chauffage | D13: ='Calcul du rendement'!F50 -> 5 | G13: Mois début chauffage | I13: ='Calcul du rendement'!F51 -> 9
B16: T° de base | C16: ='Calcul du rendement'!G20 -> -8 | D16: °C
B18: Mois | C18: Semaine | D18: Jour | E18: Heure | F18: Saison | G18: Horaire | H18: Horaire | I18: T° ext. | L18: T° int.
F19: chauffe | G19: école | H19: hebdomadaire | T19: Monotone de chaleur
F20: =SUM(F22:F8781) -> 5808 | N20: Formule : | O20: = 1 x Saison de chauffe si (Tint - Text) / (Tconsigne - Tbase) > %Puissance
F21: [h] | I21: [°C] | L21: [°C] | N21: % Puissance | O21: 1 | P21: =0.9 -> 0.9 | Q21: 0.8 | R21: 0.7 | S21: 0.6 | T21: 0.5 | U21: 0.4 | V21: 0.3 | W21: 0.2 | X21: 0.1 | Y21: 0
B22: 1 | C22: 1 | D22: 1 | E22: 1 | F22: =IF(AND(B22>$D$13,B22<$I$13),0,IF(B22=$D$13,IF(D22>=$D$12,0,1),IF(B22=$I$13,IF(D22<$I$12,0,1),1))) -> 1 | G22: n | H22: =IF(OR(AND($I$9=3,C22=7),AND($I$9=1,C22>5)),"n",IF($I$9=2,G22,"j")) -> j | I22: 7 | L22: =IF(AND(H22="j",OR(AND($C$9<=E22,E22<$C$10),AND($D$9<=E22,E22<$D$10))),$J$5,$C$5)*F22 -> 16 | O22: =IF(($L22-$I22)/(($C$4-$C$16))>=O$21,1*$F22,0) -> 0 | P22: =IF(($L22-$I22)/(($C$4-$C$16))>=P$21,1*$F22,0) -> 0 | Q22: 0 | R22: 0 | S22: 0 | T22: 0 | U22: 0 | V22: 1 | W22: 1 | X22: 1 | Y22: 1
B23: 1 | C23: 1 | D23: 1 | E23: 2 | F23: =IF(AND(B23>$D$13,B23<$I$13),0,IF(B23=$D$13,IF(D23>=$D$12,0,1),IF(B23=$I$13,IF(D23<$I$12,0,1),1))) -> 1 | G23: n | H23: =IF(OR(AND($I$9=3,C23=7),AND($I$9=1,C23>5)),"n",IF($I$9=2,G23,"j")) -> j | I23: 6.4 | L23: 16 | O23: 0 | P23: 0 | Q23: 0 | R23: 0 | S23: 0 | T23: 0 | U23: 0 | V23: 1 | W23: 1 | X23: 1 | Y23: 1
B24: 1 | C24: 1 | D24: 1 | E24: 3 | F24: 1 | G24: n | H24: =IF(OR(AND($I$9=3,C24=7),AND($I$9=1,C24>5)),"n",IF($I$9=2,G24,"j")) -> j | I24: 5.7 | L24: 16 | O24: 0 | P24: 0 | Q24: 0 | R24: 0 | S24: 0 | T24: 0 | U24: 0 | V24: 1 | W24: 1 | X24: 1 | Y24: 1
B25: 1 | C25: 1 | D25: 1 | E25: 4 | F25: 1 | G25: n | H25: =IF(OR(AND($I$9=3,C25=7),AND($I$9=1,C25>5)),"n",IF($I$9=2,G25,"j")) -> j | I25: 5.4 | L25: 16 | O25: 0 | P25: 0 | Q25: 0 | R25: 0 | S25: 0 | T25: 0 | U25: 0 | V25: 1 | W25: 1 | X25: 1 | Y25: 1
B26: 1 | C26: 1 | D26: 1 | E26: 5 | F26: 1 | G26: n | H26: =IF(OR(AND($I$9=3,C26=7),AND($I$9=1,C26>5)),"n",IF($I$9=2,G26,"j")) -> j | I26: 5.1 | L26: 16 | O26: 0 | P26: 0 | Q26: 0 | R26: 0 | S26: 0 | T26: 0 | U26: 1 | V26: 1 | W26: 1 | X26: 1 | Y26: 1
B27: 1 | C27: 1 | D27: 1 | E27: 6 | F27: 1 | G27: n | H27: j | I27: 4.8 | L27: 16 | O27: 0 | P27: 0 | Q27: 0 | R27: 0 | S27: 0 | T27: 0 | U27: 1 | V27: 1 | W27: 1 | X27: 1 | Y27: 1
B28: 1 | C28: 1 | D28: 1 | E28: 7 | F28: 1 | G28: n | H28: j | I28: 4.4 | L28: 16 | O28: 0 | P28: 0 | Q28: 0 | R28: 0 | S28: 0 | T28: 0 | U28: 1 | V28: 1 | W28: 1 | X28: 1 | Y28: 1
B29: 1 | C29: 1 | D29: 1 | E29: 8 | F29: 1 | G29: n | H29: =IF(OR(AND($I$9=3,C29=7),AND($I$9=1,C29>5)),"n",IF($I$9=2,G29,"j")) -> j | I29: 4.1 | L29: 17 | O29: 0 | P29: 0 | Q29: 0 | R29: 0 | S29: 0 | T29: 0 | U29: 1 | V29: 1 | W29: 1 | X29: 1 | Y29: 1
B30: 1 | C30: 1 | D30: 1 | E30: 9 | F30: 1 | G30: n | H30: j | I30: 4 | L30: 17 | O30: 0 | P30: 0 | Q30: 0 | R30: 0 | S30: 0 | T30: 0 | U30: 1 | V30: 1 | W30: 1 | X30: 1 | Y30: 1
B31: 1 | C31: 1 | D31: 1 | E31: 10 | F31: 1 | G31: n | H31: j | I31: 4.2 | L31: 17 | O31: 0 | P31: 0 | Q31: 0 | R31: 0 | S31: 0 | T31: 0 | U31: 1 | V31: 1 | W31: 1 | X31: 1 | Y31: 1
B32: 1 | C32: 1 | D32: 1 | E32: 11 | F32: 1 | G32: n | H32: j | I32: 4.7 | L32: 17 | O32: =IF(($L32-$I32)/(($C$4-$C$16))>=O$21,1*$F32,0) -> 0 | P32: 0 | Q32: 0 | R32: 0 | S32: 0 | T32: 0 | U32: 1 | V32: 1 | W32: 1 | X32: 1 | Y32: 1
B33: 1 | C33: 1 | D33: 1 | E33: 12 | F33: 1 | G33: n | H33: j | I33: 5.4 | L33: 17 | O33: 0 | P33: 0 | Q33: 0 | R33: 0 | S33: 0 | T33: 0 | U33: 1 | V33: 1 | W33: 1 | X33: 1 | Y33: 1
B34: 1 | C34: 1 | D34: 1 | E34: 13 | F34: 1 | G34: n | H34: j | I34: 6.1 | L34: 17 | O34: 0 | P34: 0 | Q34: 0 | R34: 0 | S34: 0 | T34: 0 | U34: 1 | V34: 1 | W34: 1 | X34: 1 | Y34: 1
B35: 1 | C35: 1 | D35: 1 | E35: 14 | F35: 1 | G35: n | H35: j | I35: 6.3 | L35: 17 | O35: 0 | P35: 0 | Q35: 0 | R35: 0 | S35: 0 | T35: 0 | U35: 0 | V35: 1 | W35: 1 | X35: 1 | Y35: 1
B36: 1 | C36: 1 | D36: 1 | E36: 15 | F36: 1 | G36: n | H36: j | I36: 6 | L36: 17 | O36: 0 | P36: 0 | Q36: 0 | R36: 0 | S36: 0 | T36: 0 | U36: 1 | V36: 1 | W36: 1 | X36: 1 | Y36: 1
B37: 1 | C37: 1 | D37: 1 | E37: 16 | F37: 1 | G37: n | H37: j | I37: 6 | L37: 17 | O37: 0 | P37: 0 | Q37: 0 | R37: 0 | S37: 0 | T37: 0 | U37: 1 | V37: 1 | W37: 1 | X37: 1 | Y37: 1
B38: 1 | C38: 1 | D38: 1 | E38: 17 | F38: 1 | G38: n | H38: j | I38: 5.9 | L38: 17 | O38: 0 | P38: 0 | Q38: 0 | R38: 0 | S38: 0 | T38: 0 | U38: 1 | V38: 1 | W38: 1 | X38: 1 | Y38: 1
B39: 1 | C39: 1 | D39: 1 | E39: 18 | F39: 1 | G39: n | H39: j | I39: 5.5 | L39: 16 | O39: 0 | P39: 0 | Q39: 0 | R39: 0 | S39: 0 | T39: 0 | U39: 0 | V39: 1 | W39: 1 | X39: 1 | Y39: 1
B40: 1 | C40: 1 | D40: 1 | E40: 19 | F40: 1 | G40: n | H40: j | I40: 5.2 | L40: 16 | O40: 0 | P40: 0 | Q40: 0 | R40: 0 | S40: 0 | T40: 0 | U40: 1 | V40: 1 | W40: 1 | X40: 1 | Y40: 1
B41: 1 | C41: 1 | D41: 1 | E41: 20 | F41: 1 | G41: n | H41: j | I41: 5 | L41: 16 | O41: 0 | P41: 0 | Q41: 0 | R41: 0 | S41: 0 | T41: 0 | U41: 1 | V41: 1 | W41: 1 | X41: 1 | Y41: 1
B42: 1 | C42: 1 | D42: 1 | E42: 21 | F42: 1 | G42: n | H42: j | I42: 4.5 | L42: 16 | O42: =IF(($L42-$I42)/(($C$4-$C$16))>=O$21,1*$F42,0) -> 0 | P42: 0 | Q42: 0 | R42: 0 | S42: 0 | T42: 0 | U42: 1 | V42: 1 | W42: 1 | X42: 1 | Y42: 1
B43: 1 | C43: 1 | D43: 1 | E43: 22 | F43: 1 | G43: n | H43: j | I43: 3.9 | L43: 16 | O43: 0 | P43: 0 | Q43: 0 | R43: 0 | S43: 0 | T43: 0 | U43: 1 | V43: 1 | W43: 1 | X43: 1 | Y43: 1
B44: 1 | C44: 1 | D44: 1 | E44: 23 | F44: 1 | G44: n | H44: j | I44: 3.4 | L44: 16 | O44: 0 | P44: 0 | Q44: 0 | R44: 0 | S44: 0 | T44: 0 | U44: 1 | V44: 1 | W44: 1 | X44: 1 | Y44: 1
B45: 1 | C45: 1 | D45: 1 | E45: 24 | F45: 1 | G45: n | H45: j | I45: 2.9 | L45: 16 | O45: 0 | P45: 0 | Q45: 0 | R45: 0 | S45: 0 | T45: 0 | U45: 1 | V45: 1 | W45: 1 | X45: 1 | Y45: 1
B46: 1 | C46: 2 | D46: 2 | E46: 1 | F46: 1 | G46: n | H46: j | I46: 2.6 | L46: 16 | O46: 0 | P46: 0 | Q46: 0 | R46: 0 | S46: 0 | T46: 0 | U46: 1 | V46: 1 | W46: 1 | X46: 1 | Y46: 1
B47: 1 | C47: 2 | D47: 2 | E47: 2 | F47: 1 | G47: n | H47: j | I47: 2.4 | L47: 16 | O47: 0 | P47: 0 | Q47: 0 | R47: 0 | S47: 0 | T47: 1 | U47: 1 | V47: 1 | W47: 1 | X47: 1 | Y47: 1
B48: 1 | C48: 2 | D48: 2 | E48: 3 | F48: 1 | G48: n | H48: j | I48: 2.2 | L48: 16 | O48: 0 | P48: 0 | Q48: 0 | R48: 0 | S48: 0 | T48: 1 | U48: 1 | V48: 1 | W48: 1 | X48: 1 | Y48: 1
B49: 1 | C49: 2 | D49: 2 | E49: 4 | F49: 1 | G49: n | H49: j | I49: 2.1 | L49: 16 | O49: 0 | P49: 0 | Q49: 0 | R49: 0 | S49: 0 | T49: 1 | U49: 1 | V49: 1 | W49: 1 | X49: 1 | Y49: 1
B50: 1 | C50: 2 | D50: 2 | E50: 5 | F50: 1 | G50: n | H50: j | I50: 1.9 | L50: 16 | O50: 0 | P50: 0 | Q50: 0 | R50: 0 | S50: 0 | T50: 1 | U50: 1 | V50: 1 | W50: 1 | X50: 1 | Y50: 1
B51: 1 | C51: 2 | D51: 2 | E51: 6 | F51: 1 | G51: n | H51: j | I51: 1.7 | L51: 16 | O51: 0 | P51: 0 | Q51: 0 | R51: 0 | S51: 0 | T51: 1 | U51: 1 | V51: 1 | W51: 1 | X51: 1 | Y51: 1
B52: 1 | C52: 2 | D52: 2 | E52: 7 | F52: 1 | G52: n | H52: j | I52: 1.6 | L52: 16 | O52: =IF(($L52-$I52)/(($C$4-$C$16))>=O$21,1*$F52,0) -> 0 | P52: 0 | Q52: 0 | R52: 0 | S52: 0 | T52: 1 | U52: 1 | V52: 1 | W52: 1 | X52: 1 | Y52: 1
B53: 1 | C53: 2 | D53: 2 | E53: 8 | F53: 1 | G53: n | H53: j | I53: 1.4 | L53: 17 | O53: 0 | P53: 0 | Q53: 0 | R53: 0 | S53: 0 | T53: 1 | U53: 1 | V53: 1 | W53: 1 | X53: 1 | Y53: 1
B54: 1 | C54: 2 | D54: 2 | E54: 9 | F54: 1 | G54: n | H54: j | I54: 1.1 | L54: 17 | O54: 0 | P54: 0 | Q54: 0 | R54: 0 | S54: 0 | T54: 1 | U54: 1 | V54: 1 | W54: 1 | X54: 1 | Y54: 1
B55: 1 | C55: 2 | D55: 2 | E55: 10 | F55: 1 | G55: n | H55: j | I55: 1.2 | L55: 17 | O55: 0 | P55: 0 | Q55: 0 | R55: 0 | S55: 0 | T55: 1 | U55: 1 | V55: 1 | W55: 1 | X55: 1 | Y55: 1
B56: 1 | C56: 2 | D56: 2 | E56: 11 | F56: 1 | G56: n | H56: j | I56: 1.8 | L56: 17 | O56: 0 | P56: 0 | Q56: 0 | R56: 0 | S56: 0 | T56: 1 | U56: 1 | V56: 1 | W56: 1 | X56: 1 | Y56: 1
B57: 1 | C57: 2 | D57: 2 | E57: 12 | F57: 1 | G57: n | H57: j | I57: 2.8 | L57: 17 | O57: 0 | P57: 0 | Q57: 0 | R57: 0 | S57: 0 | T57: 1 | U57: 1 | V57: 1 | W57: 1 | X57: 1 | Y57: 1
B58: 1 | C58: 2 | D58: 2 | E58: 13 | F58: 1 | G58: n | H58: j | I58: 3.8 | L58: 17 | O58: 0 | P58: 0 | Q58: 0 | R58: 0 | S58: 0 | T58: 0 | U58: 1 | V58: 1 | W58: 1 | X58: 1 | Y58: 1
B59: 1 | C59: 2 | D59: 2 | E59: 14 | F59: 1 | G59: n | H59: j | I59: 4.3 | L59: 17 | O59: 0 | P59: 0 | Q59: 0 | R59: 0 | S59: 0 | T59: 0 | U59: 1 | V59: 1 | W59: 1 | X59: 1 | Y59: 1
B60: 1 | C60: 2 | D60: 2 | E60: 15 | F60: 1 | G60: n | H60: j | I60: 4.3 | L60: 17 | O60: 0 | P60: 0 | Q60: 0 | R60: 0 | S60: 0 | T60: 0 | U60: 1 | V60: 1 | W60: 1 | X60: 1 | Y60: 1
B61: 1 | C61: 2 | D61: 2 | E61: 16 | F61: 1 | G61: n | H61: j | I61: 4.1 | L61: 17 | O61: 0 | P61: 0 | Q61: 0 | R61: 0 | S61: 0 | T61: 0 | U61: 1 | V61: 1 | W61: 1 | X61: 1 | Y61: 1
B62: 1 | C62: 2 | D62: 2 | E62: 17 | F62: 1 | G62: n | H62: j | I62: 3.7 | L62: 17 | O62: =IF(($L62-$I62)/(($C$4-$C$16))>=O$21,1*$F62,0) -> 0 | P62: 0 | Q62: 0 | R62: 0 | S62: 0 | T62: 0 | U62: 1 | V62: 1 | W62: 1 | X62: 1 | Y62: 1
B63: 1 | C63: 2 | D63: 2 | E63: 18 | F63: 1 | G63: n | H63: j | I63: 3 | L63: 16 | O63: 0 | P63: 0 | Q63: 0 | R63: 0 | S63: 0 | T63: 0 | U63: 1 | V63: 1 | W63: 1 | X63: 1 | Y63: 1
B64: 1 | C64: 2 | D64: 2 | E64: 19 | F64: 1 | G64: n | H64: j | I64: 2.4 | L64: 16 | O64: 0 | P64: 0 | Q64: 0 | R64: 0 | S64: 0 | T64: 1 | U64: 1 | V64: 1 | W64: 1 | X64: 1 | Y64: 1
B65: 1 | C65: 2 | D65: 2 | E65: 20 | F65: 1 | G65: n | H65: j | I65: 1.9 | L65: 16 | O65: 0 | P65: 0 | Q65: 0 | R65: 0 | S65: 0 | T65: 1 | U65: 1 | V65: 1 | W65: 1 | X65: 1 | Y65: 1
B66: 1 | C66: 2 | D66: 2 | E66: 21 | F66: 1 | G66: n | H66: j | I66: 1.5 | L66: 16 | O66: 0 | P66: 0 | Q66: 0 | R66: 0 | S66: 0 | T66: 1 | U66: 1 | V66: 1 | W66: 1 | X66: 1 | Y66: 1
B67: 1 | C67: 2 | D67: 2 | E67: 22 | F67: 1 | G67: n | H67: j | I67: 1.6 | L67: 16 | O67: 0 | P67: 0 | Q67: 0 | R67: 0 | S67: 0 | T67: 1 | U67: 1 | V67: 1 | W67: 1 | X67: 1 | Y67: 1
B68: 1 | C68: 2 | D68: 2 | E68: 23 | F68: 1 | G68: n | H68: j | I68: 2 | L68: 16 | O68: 0 | P68: 0 | Q68: 0 | R68: 0 | S68: 0 | T68: 1 | U68: 1 | V68: 1 | W68: 1 | X68: 1 | Y68: 1
B69: 1 | C69: 2 | D69: 2 | E69: 24 | F69: 1 | G69: n | H69: j | I69: 2.3 | L69: 16 | O69: 0 | P69: 0 | Q69: 0 | R69: 0 | S69: 0 | T69: 1 | U69: 1 | V69: 1 | W69: 1 | X69: 1 | Y69: 1
B70: 1 | C70: 3 | D70: 3 | E70: 1 | F70: 1 | G70: n | H70: j | I70: 2.7 | L70: 16 | O70: 0 | P70: 0 | Q70: 0 | R70: 0 | S70: 0 | T70: 0 | U70: 1 | V70: 1 | W70: 1 | X70: 1 | Y70: 1
B71: 1 | C71: 3 | D71: 3 | E71: 2 | F71: 1 | G71: n | H71: j | I71: 2.8 | L71: 16 | O71: 0 | P71: 0 | Q71: 0 | R71: 0 | S71: 0 | T71: 0 | U71: 1 | V71: 1 | W71: 1 | X71: 1 | Y71: 1
B72: 1 | C72: 3 | D72: 3 | E72: 3 | F72: 1 | G72: n | H72: j | I72: 2.8 | L72: 16 | O72: =IF(($L72-$I72)/(($C$4-$C$16))>=O$21,1*$F72,0) -> 0 | P72: 0 | Q72: 0 | R72: 0 | S72: 0 | T72: 0 | U72: 1 | V72: 1 | W72: 1 | X72: 1 | Y72: 1
B73: 1 | C73: 3 | D73: 3 | E73: 4 | F73: 1 | G73: n | H73: j | I73: 2.8 | L73: 16 | O73: 0 | P73: 0 | Q73: 0 | R73: 0 | S73: 0 | T73: 0 | U73: 1 | V73: 1 | W73: 1 | X73: 1 | Y73: 1
B74: 1 | C74: 3 | D74: 3 | E74: 5 | F74: 1 | G74: n | H74: j | I74: 2.5 | L74: 16 | O74: 0 | P74: 0 | Q74: 0 | R74: 0 | S74: 0 | T74: 1 | U74: 1 | V74: 1 | W74: 1 | X74: 1 | Y74: 1
B75: 1 | C75: 3 | D75: 3 | E75: 6 | F75: 1 | G75: n | H75: j | I75: 2.1 | L75: 16 | O75: 0 | P75: 0 | Q75: 0 | R75: 0 | S75: 0 | T75: 1 | U75: 1 | V75: 1 | W75: 1 | X75: 1 | Y75: 1
B76: 1 | C76: 3 | D76: 3 | E76: 7 | F76: 1 | G76: n | H76: j | I76: 1.6 | L76: 16 | O76: 0 | P76: 0 | Q76: 0 | R76: 0 | S76: 0 | T76: 1 | U76: 1 | V76: 1 | W76: 1 | X76: 1 | Y76: 1
B77: 1 | C77: 3 | D77: 3 | E77: 8 | F77: 1 | G77: n | H77: j | I77: 1.4 | L77: 17 | O77: 0 | P77: 0 | Q77: 0 | R77: 0 | S77: 0 | T77: 1 | U77: 1 | V77: 1 | W77: 1 | X77: 1 | Y77: 1
B78: 1 | C78: 3 | D78: 3 | E78: 9 | F78: 1 | G78: n | H78: j | I78: 1.6 | L78: 17 | O78: 0 | P78: 0 | Q78: 0 | R78: 0 | S78: 0 | T78: 1 | U78: 1 | V78: 1 | W78: 1 | X78: 1 | Y78: 1
B79: 1 | C79: 3 | D79: 3 | E79: 10 | F79: 1 | G79: n | H79: j | I79: 1.5 | L79: 17 | O79: 0 | P79: 0 | Q79: 0 | R79: 0 | S79: 0 | T79: 1 | U79: 1 | V79: 1 | W79: 1 | X79: 1 | Y79: 1
B80: 1 | C80: 3 | D80: 3 | E80: 11 | F80: 1 | G80: n | H80: j | I80: 1.6 | L80: 17 | O80: 0 | P80: 0 | Q80: 0 | R80: 0 | S80: 0 | T80: 1 | U80: 1 | V80: 1 | W80: 1 | X80: 1 | Y80: 1
B81: 1 | C81: 3 | D81: 3 | E81: 12 | F81: 1 | G81: n | H81: j | I81: 2 | L81: 17 | O81: 0 | P81: 0 | Q81: 0 | R81: 0 | S81: 0 | T81: 1 | U81: 1 | V81: 1 | W81: 1 | X81: 1 | Y81: 1
B82: 1 | C82: 3 | D82: 3 | E82: 13 | F82: 1 | G82: n | H82: j | I82: 1.6 | L82: 17 | O82: =IF(($L82-$I82)/(($C$4-$C$16))>=O$21,1*$F82,0) -> 0 | P82: 0 | Q82: 0 | R82: 0 | S82: 0 | T82: 1 | U82: 1 | V82: 1 | W82: 1 | X82: 1 | Y82: 1
B83: 1 | C83: 3 | D83: 3 | E83: 14 | F83: 1 | G83: n | H83: j | I83: 1.8 | L83: 17 | O83: 0 | P83: 0 | Q83: 0 | R83: 0 | S83: 0 | T83: 1 | U83: 1 | V83: 1 | W83: 1 | X83: 1 | Y83: 1
B84: 1 | C84: 3 | D84: 3 | E84: 15 | F84: 1 | G84: n | H84: j | I84: 2.9 | L84: 17 | O84: 0 | P84: 0 | Q84: 0 | R84: 0 | S84: 0 | T84: 1 | U84: 1 | V84: 1 | W84: 1 | X84: 1 | Y84: 1
B85: 1 | C85: 3 | D85: 3 | E85: 16 | F85: 1 | G85: n | H85: j | I85: 3 | L85: 17 | O85: 0 | P85: 0 | Q85: 0 | R85: 0 | S85: 0 | T85: 1 | U85: 1 | V85: 1 | W85: 1 | X85: 1 | Y85: 1
B86: 1 | C86: 3 | D86: 3 | E86: 17 | F86: 1 | G86: n | H86: j | I86: 3 | L86: =IF(AND(H86="j",OR(AND($C$9<=E86,E86<$C$10),AND($D$9<=E86,E86<$D$10))),$J$5,$C$5)*F86 -> 17 | O86: 0 | P86: 0 | Q86: 0 | R86: 0 | S86: 0 | T86: 1 | U86: 1 | V86: 1 | W86: 1 | X86: 1 | Y86: 1
B87: 1 | C87: 3 | D87: 3 | E87: 18 | F87: =IF(AND(B87>$D$13,B87<$I$13),0,IF(B87=$D$13,IF(D87>=$D$12,0,1),IF(B87=$I$13,IF(D87<$I$12,0,1),1))) -> 1 | G87: n | H87: =IF(OR(AND($I$9=3,C87=7),AND($I$9=1,C87>5)),"n",IF($I$9=2,G87,"j")) -> j | I87: 3.1 | L87: 16 | O87: 0 | P87: 0 | Q87: 0 | R87: 0 | S87: 0 | T87: 0 | U87: 1 | V87: 1 | W87: 1 | X87: 1 | Y87: 1
B88: 1 | C88: 3 | D88: 3 | E88: 19 | F88: 1 | G88: n | H88: j | I88: 3.1 | L88: 16 | O88: 0 | P88: 0 | Q88: 0 | R88: 0 | S88: 0 | T88: 0 | U88: 1 | V88: 1 | W88: 1 | X88: 1 | Y88: 1
B89: 1 | C89: 3 | D89: 3 | E89: 20 | F89: 1 | G89: n | H89: j | I89: 3.1 | L89: 16 | O89: 0 | P89: 0 | Q89: 0 | R89: 0 | S89: 0 | T89: 0 | U89: 1 | V89: 1 | W89: 1 | X89: 1 | Y89: 1
B90: 1 | C90: 3 | D90: 3 | E90: 21 | F90: 1 | G90: n | H90: j | I90: 3.2 | L90: 16 | O90: 0 | P90: 0 | Q90: 0 | R90: 0 | S90: 0 | T90: 0 | U90: 1 | V90: 1 | W90: 1 | X90: 1 | Y90: 1
B91: 1 | C91: 3 | D91: 3 | E91: 22 | F91: 1 | G91: n | H91: j | I91: 3.1 | L91: 16 | O91: 0 | P91: 0 | Q91: 0 | R91: 0 | S91: 0 | T91: 0 | U91: 1 | V91: 1 | W91: 1 | X91: 1 | Y91: 1
B92: 1 | C92: 3 | D92: 3 | E92: 23 | F92: 1 | G92: n | H92: j | I92: 3.1 | L92: 16 | O92: =IF(($L92-$I92)/(($C$4-$C$16))>=O$21,1*$F92,0) -> 0 | P92: 0 | Q92: 0 | R92: 0 | S92: 0 | T92: 0 | U92: 1 | V92: 1 | W92: 1 | X92: 1 | Y92: 1
B93: 1 | C93: 3 | D93: 3 | E93: 24 | F93: 1 | G93: n | H93: j | I93: 3.3 | L93: 16 | O93: 0 | P93: 0 | Q93: 0 | R93: 0 | S93: 0 | T93: 0 | U93: 1 | V93: 1 | W93: 1 | X93: 1 | Y93: 1
B94: 1 | C94: 4 | D94: 4 | E94: 1 | F94: 1 | G94: n | H94: j | I94: 3.5 | L94: 16 | O94: 0 | P94: 0 | Q94: 0 | R94: 0 | S94: 0 | T94: 0 | U94: 1 | V94: 1 | W94: 1 | X94: 1 | Y94: 1
B95: 1 | C95: 4 | D95: 4 | E95: 2 | F95: 1 | G95: n | H95: j | I95: 3.4 | L95: 16 | O95: 0 | P95: 0 | Q95: 0 | R95: 0 | S95: 0 | T95: 0 | U95: 1 | V95: 1 | W95: 1 | X95: 1 | Y95: 1
B96: 1 | C96: 4 | D96: 4 | E96: 3 | F96: 1 | G96: n | H96: j | I96: 3.3 | L96: 16 | O96: 0 | P96: 0 | Q96: 0 | R96: 0 | S96: 0 | T96: 0 | U96: 1 | V96: 1 | W96: 1 | X96: 1 | Y96: 1
B97: 1 | C97: 4 | D97: 4 | E97: 4 | F97: 1 | G97: n | H97: j | I97: 3.3 | L97: 16 | O97: 0 | P97: 0 | Q97: 0 | R97: 0 | S97: 0 | T97: 0 | U97: 1 | V97: 1 | W97: 1 | X97: 1 | Y97: 1
B98: 1 | C98: 4 | D98: 4 | E98: 5 | F98: 1 | G98: n | H98: j | I98: 3.1 | L98: 16 | O98: 0 | P98: 0 | Q98: 0 | R98: 0 | S98: 0 | T98: 0 | U98: 1 | V98: 1 | W98: 1 | X98: 1 | Y98: 1
B99: 1 | C99: 4 | D99: 4 | E99: 6 | F99: 1 | G99: n | H99: j | I99: 2.9 | L99: 16 | O99: 0 | P99: 0 | Q99: 0 | R99: 0 | S99: 0 | T99: 0 | U99: 1 | V99: 1 | W99: 1 | X99: 1 | Y99: 1
B100: 1 | C100: 4 | D100: 4 | E100: 7 | F100: 1 | G100: n | H100: j | I100: 2.6 | L100: 16 | O100: 0 | P100: 0 | Q100: 0 | R100: 0 | S100: 0 | T100: 0 | U100: 1 | V100: 1 | W100: 1 | X100: 1 | Y100: 1
B101: 1 | C101: 4 | D101: 4 | E101: 8 | F101: 1 | G101: n | H101: j | I101: 2.2 | L101: 17 | O101: 0 | P101: 0 | Q101: 0 | R101: 0 | S101: 0 | T101: 1 | U101: 1 | V101: 1 | W101: 1 | X101: 1 | Y101: 1
B102: 1 | C102: 4 | D102: 4 | E102: 9 | F102: 1 | G102: n | H102: j | I102: 1.6 | L102: 17 | O102: =IF(($L102-$I102)/(($C$4-$C$16))>=O$21,1*$F102,0) -> 0 | P102: 0 | Q102: 0 | R102: 0 | S102: 0 | T102: 1 | U102: 1 | V102: 1 | W102: 1 | X102: 1 | Y102: 1
B103: 1 | C103: 4 | D103: 4 | E103: 10 | F103: 1 | G103: n | H103: j | I103: 1 | L103: 17 | O103: 0 | P103: 0 | Q103: 0 | R103: 0 | S103: 0 | T103: 1 | U103: 1 | V103: 1 | W103: 1 | X103: 1 | Y103: 1
B104: 1 | C104: 4 | D104: 4 | E104: 11 | F104: 1 | G104: n | H104: j | I104: 1.2 | L104: 17 | O104: 0 | P104: 0 | Q104: 0 | R104: 0 | S104: 0 | T104: 1 | U104: 1 | V104: 1 | W104: 1 | X104: 1 | Y104: 1
B105: 1 | C105: 4 | D105: 4 | E105: 12 | F105: 1 | G105: n | H105: j | I105: 2 | L105: 17 | O105: 0 | P105: 0 | Q105: 0 | R105: 0 | S105: 0 | T105: 1 | U105: 1 | V105: 1 | W105: 1 | X105: 1 | Y105: 1
B106: 1 | C106: 4 | D106: 4 | E106: 13 | F106: 1 | G106: n | H106: j | I106: 2.5 | L106: 17 | O106: 0 | P106: 0 | Q106: 0 | R106: 0 | S106: 0 | T106: 1 | U106: 1 | V106: 1 | W106: 1 | X106: 1 | Y106: 1
B107: 1 | C107: 4 | D107: 4 | E107: 14 | F107: 1 | G107: n | H107: j | I107: 2.4 | L107: 17 | O107: 0 | P107: 0 | Q107: 0 | R107: 0 | S107: 0 | T107: 1 | U107: 1 | V107: 1 | W107: 1 | X107: 1 | Y107: 1
B108: 1 | C108: 4 | D108: 4 | E108: 15 | F108: 1 | G108: n | H108: j | I108: 2.3 | L108: 17 | O108: 0 | P108: 0 | Q108: 0 | R108: 0 | S108: 0 | T108: 1 | U108: 1 | V108: 1 | W108: 1 | X108: 1 | Y108: 1
B109: 1 | C109: 4 | D109: 4 | E109: 16 | F109: 1 | G109: n | H109: j | I109: 2.1 | L109: 17 | O109: 0 | P109: 0 | Q109: 0 | R109: 0 | S109: 0 | T109: 1 | U109: 1 | V109: 1 | W109: 1 | X109: 1 | Y109: 1
B110: 1 | C110: 4 | D110: 4 | E110: 17 | F110: 1 | G110: n | H110: j | I110: 1.5 | L110: 17 | O110: 0 | P110: 0 | Q110: 0 | R110: 0 | S110: 0 | T110: 1 | U110: 1 | V110: 1 | W110: 1 | X110: 1 | Y110: 1
B111: 1 | C111: 4 | D111: 4 | E111: 18 | F111: 1 | G111: n | H111: j | I111: 1.3 | L111: 16 | O111: 0 | P111: 0 | Q111: 0 | R111: 0 | S111: 0 | T111: 1 | U111: 1 | V111: 1 | W111: 1 | X111: 1 | Y111: 1
B112: 1 | C112: 4 | D112: 4 | E112: 19 | F112: 1 | G112: n | H112: j | I112: 1.4 | L112: 16 | O112: =IF(($L112-$I112)/(($C$4-$C$16))>=O$21,1*$F112,0) -> 0 | P112: 0 | Q112: 0 | R112: 0 | S112: 0 | T112: 1 | U112: 1 | V112: 1 | W112: 1 | X112: 1 | Y112: 1
B113: 1 | C113: 4 | D113: 4 | E113: 20 | F113: 1 | G113: n | H113: j | I113: 1.6 | L113: 16 | O113: 0 | P113: 0 | Q113: 0 | R113: 0 | S113: 0 | T113: 1 | U113: 1 | V113: 1 | W113: 1 | X113: 1 | Y113: 1
B114: 1 | C114: 4 | D114: 4 | E114: 21 | F114: 1 | G114: n | H114: j | I114: 1.7 | L114: 16 | O114: 0 | P114: 0 | Q114: 0 | R114: 0 | S114: 0 | T114: 1 | U114: 1 | V114: 1 | W114: 1 | X114: 1 | Y114: 1
B115: 1 | C115: 4 | D115: 4 | E115: 22 | F115: 1 | G115: n | H115: j | I115: 1.4 | L115: 16 | O115: 0 | P115: 0 | Q115: 0 | R115: 0 | S115: 0 | T115: 1 | U115: 1 | V115: 1 | W115: 1 | X115: 1 | Y115: 1
B116: 1 | C116: 4 | D116: 4 | E116: 23 | F116: 1 | G116: n | H116: j | I116: 1.1 | L116: 16 | O116: 0 | P116: 0 | Q116: 0 | R116: 0 | S116: 0 | T116: 1 | U116: 1 | V116: 1 | W116: 1 | X116: 1 | Y116: 1
B117: 1 | C117: 4 | D117: 4 | E117: 24 | F117: 1 | G117: n | H117: j | I117: 1 | L117: 16 | O117: 0 | P117: 0 | Q117: 0 | R117: 0 | S117: 0 | T117: 1 | U117: 1 | V117: 1 | W117: 1 | X117: 1 | Y117: 1
B118: 1 | C118: 5 | D118: 5 | E118: 1 | F118: 1 | G118: n | H118: j | I118: 0.1 | L118: 16 | O118: 0 | P118: 0 | Q118: 0 | R118: 0 | S118: 0 | T118: 1 | U118: 1 | V118: 1 | W118: 1 | X118: 1 | Y118: 1
B119: 1 | C119: 5 | D119: 5 | E119: 2 | F119: 1 | G119: n | H119: j | I119: 0.1 | L119: 16 | O119: 0 | P119: 0 | Q119: 0 | R119: 0 | S119: 0 | T119: 1 | U119: 1 | V119: 1 | W119: 1 | X119: 1 | Y119: 1
B120: 1 | C120: 5 | D120: 5 | E120: 3 | F120: 1 | G120: n | H120: j | I120: 0.1 | L120: 16 | O120: 0 | P120: 0 | Q120: 0 | R120: 0 | S120: 0 | T120: 1 | U120: 1 | V120: 1 | W120: 1 | X120: 1 | Y120: 1
B121: 1 | C121: 5 | D121: 5 | E121: 4 | F121: 1 | G121: n | H121: j | I121: 0 | L121: 16 | O121: 0 | P121: 0 | Q121: 0 | R121: 0 | S121: 0 | T121: 1 | U121: 1 | V121: 1 | W121: 1 | X121: 1 | Y121: 1
B122: 1 | C122: 5 | D122: 5 | E122: 5 | F122: 1 | G122: n | H122: j | I122: 0 | L122: 16 | O122: =IF(($L122-$I122)/(($C$4-$C$16))>=O$21,1*$F122,0) -> 0 | P122: 0 | Q122: 0 | R122: 0 | S122: 0 | T122: 1 | U122: 1 | V122: 1 | W122: 1 | X122: 1 | Y122: 1
B123: 1 | C123: 5 | D123: 5 | E123: 6 | F123: 1 | G123: n | H123: j | I123: -0.3 | L123: 16 | O123: 0 | P123: 0 | Q123: 0 | R123: 0 | S123: 1 | T123: 1 | U123: 1 | V123: 1 | W123: 1 | X123: 1 | Y123: 1
B124: 1 | C124: 5 | D124: 5 | E124: 7 | F124: 1 | G124: n | H124: j | I124: -0.5 | L124: 16 | O124: 0 | P124: 0 | Q124: 0 | R124: 0 | S124: 1 | T124: 1 | U124: 1 | V124: 1 | W124: 1 | X124: 1 | Y124: 1
B125: 1 | C125: 5 | D125: 5 | E125: 8 | F125: 1 | G125: n | H125: j | I125: -0.3 | L125: 17 | O125: 0 | P125: 0 | Q125: 0 | R125: 0 | S125: 1 | T125: 1 | U125: 1 | V125: 1 | W125: 1 | X125: 1 | Y125: 1
B126: 1 | C126: 5 | D126: 5 | E126: 9 | F126: 1 | G126: n | H126: j | I126: -0.1 | L126: 17 | O126: 0 | P126: 0 | Q126: 0 | R126: 0 | S126: 1 | T126: 1 | U126: 1 | V126: 1 | W126: 1 | X126: 1 | Y126: 1
B127: 1 | C127: 5 | D127: 5 | E127: 10 | F127: 1 | G127: n | H127: j | I127: 0 | L127: 17 | O127: 0 | P127: 0 | Q127: 0 | R127: 0 | S127: 1 | T127: 1 | U127: 1 | V127: 1 | W127: 1 | X127: 1 | Y127: 1
B128: 1 | C128: 5 | D128: 5 | E128: 11 | F128: 1 | G128: n | H128: j | I128: -0.3 | L128: 17 | O128: 0 | P128: 0 | Q128: 0 | R128: 0 | S128: 1 | T128: 1 | U128: 1 | V128: 1 | W128: 1 | X128: 1 | Y128: 1
B129: 1 | C129: 5 | D129: 5 | E129: 12 | F129: 1 | G129: n | H129: j | I129: -0.1 | L129: 17 | O129: 0 | P129: 0 | Q129: 0 | R129: 0 | S129: 1 | T129: 1 | U129: 1 | V129: 1 | W129: 1 | X129: 1 | Y129: 1
B130: 1 | C130: 5 | D130: 5 | E130: 13 | F130: 1 | G130: n | H130: j | I130: 0.9 | L130: 17 | O130: 0 | P130: 0 | Q130: 0 | R130: 0 | S130: 0 | T130: 1 | U130: 1 | V130: 1 | W130: 1 | X130: 1 | Y130: 1
B131: 1 | C131: 5 | D131: 5 | E131: 14 | F131: 1 | G131: n | H131: j | I131: 1.6 | L131: 17 | O131: 0 | P131: 0 | Q131: 0 | R131: 0 | S131: 0 | T131: 1 | U131: 1 | V131: 1 | W131: 1 | X131: 1 | Y131: 1
B132: 1 | C132: 5 | D132: 5 | E132: 15 | F132: 1 | G132: n | H132: j | I132: 2 | L132: 17 | O132: =IF(($L132-$I132)/(($C$4-$C$16))>=O$21,1*$F132,0) -> 0 | P132: 0 | Q132: 0 | R132: 0 | S132: 0 | T132: 1 | U132: 1 | V132: 1 | W132: 1 | X132: 1 | Y132: 1
B133: 1 | C133: 5 | D133: 5 | E133: 16 | F133: 1 | G133: n | H133: j | I133: 2.1 | L133: 17 | O133: 0 | P133: 0 | Q133: 0 | R133: 0 | S133: 0 | T133: 1 | U133: 1 | V133: 1 | W133: 1 | X133: 1 | Y133: 1
B134: 1 | C134: 5 | D134: 5 | E134: 17 | F134: 1 | G134: n | H134: j | I134: 1.8 | L134: 17 | O134: 0 | P134: 0 | Q134: 0 | R134: 0 | S134: 0 | T134: 1 | U134: 1 | V134: 1 | W134: 1 | X134: 1 | Y134: 1
B135: 1 | C135: 5 | D135: 5 | E135: 18 | F135: 1 | G135: n | H135: j | I135: 1.5 | L135: 16 | O135: 0 | P135: 0 | Q135: 0 | R135: 0 | S135: 0 | T135: 1 | U135: 1 | V135: 1 | W135: 1 | X135: 1 | Y135: 1
B136: 1 | C136: 5 | D136: 5 | E136: 19 | F136: 1 | G136: n | H136: j | I136: 0.9 | L136: 16 | O136: 0 | P136: 0 | Q136: 0 | R136: 0 | S136: 0 | T136: 1 | U136: 1 | V136: 1 | W136: 1 | X136: 1 | Y136: 1
B137: 1 | C137: 5 | D137: 5 | E137: 20 | F137: 1 | G137: n | H137: j | I137: 0.5 | L137: 16 | O137: 0 | P137: 0 | Q137: 0 | R137: 0 | S137: 0 | T137: 1 | U137: 1 | V137: 1 | W137: 1 | X137: 1 | Y137: 1
B138: 1 | C138: 5 | D138: 5 | E138: 21 | F138: 1 | G138: n | H138: j | I138: 0.6 | L138: 16 | O138: 0 | P138: 0 | Q138: 0 | R138: 0 | S138: 0 | T138: 1 | U138: 1 | V138: 1 | W138: 1 | X138: 1 | Y138: 1
B139: 1 | C139: 5 | D139: 5 | E139: 22 | F139: 1 | G139: n | H139: j | I139: 0.9 | L139: 16 | O139: 0 | P139: 0 | Q139: 0 | R139: 0 | S139: 0 | T139: 1 | U139: 1 | V139: 1 | W139: 1 | X139: 1 | Y139: 1
B140: 1 | C140: 5 | D140: 5 | E140: 23 | F140: 1 | G140: n | H140: j | I140: 0.8 | L140: 16 | O140: 0 | P140: 0 | Q140: 0 | R140: 0 | S140: 0 | T140: 1 | U140: 1 | V140: 1 | W140: 1 | X140: 1 | Y140: 1
B141: 1 | C141: 5 | D141: 5 | E141: 24 | F141: 1 | G141: n | H141: j | I141: 0.2 | L141: 16 | O141: 0 | P141: 0 | Q141: 0 | R141: 0 | S141: 0 | T141: 1 | U141: 1 | V141: 1 | W141: 1 | X141: 1 | Y141: 1
B142: 1 | C142: 6 | D142: 6 | E142: 1 | F142: 1 | G142: n | H142: n | I142: -0.8 | L142: 16 | O142: =IF(($L142-$I142)/(($C$4-$C$16))>=O$21,1*$F142,0) -> 0 | P142: 0 | Q142: 0 | R142: 0 | S142: 1 | T142: 1 | U142: 1 | V142: 1 | W142: 1 | X142: 1 | Y142: 1
B143: 1 | C143: 6 | D143: 6 | E143: 2 | F143: 1 | G143: n | H143: n | I143: -0.9 | L143: 16 | O143: 0 | P143: 0 | Q143: 0 | R143: 0 | S143: 1 | T143: 1 | U143: 1 | V143: 1 | W143: 1 | X143: 1 | Y143: 1
B144: 1 | C144: 6 | D144: 6 | E144: 3 | F144: 1 | G144: n | H144: n | I144: -1.5 | L144: 16 | O144: 0 | P144: 0 | Q144: 0 | R144: 0 | S144: 1 | T144: 1 | U144: 1 | V144: 1 | W144: 1 | X144: 1 | Y144: 1
B145: 1 | C145: 6 | D145: 6 | E145: 4 | F145: 1 | G145: n | H145: n | I145: -2.3 | L145: 16 | O145: 0 | P145: 0 | Q145: 0 | R145: 0 | S145: 1 | T145: 1 | U145: 1 | V145: 1 | W145: 1 | X145: 1 | Y145: 1
B146: 1 | C146: 6 | D146: 6 | E146: 5 | F146: 1 | G146: n | H146: n | I146: -2.9 | L146: 16 | O146: 0 | P146: 0 | Q146: 0 | R146: 1 | S146: 1 | T146: 1 | U146: 1 | V146: 1 | W146: 1 | X146: 1 | Y146: 1
B147: 1 | C147: 6 | D147: 6 | E147: 6 | F147: 1 | G147: n | H147: n | I147: -3.5 | L147: 16 | O147: 0 | P147: 0 | Q147: 0 | R147: 1 | S147: 1 | T147: 1 | U147: 1 | V147: 1 | W147: 1 | X147: 1 | Y147: 1
B148: 1 | C148: 6 | D148: 6 | E148: 7 | F148: 1 | G148: n | H148: n | I148: -3.8 | L148: 16 | O148: 0 | P148: 0 | Q148: 0 | R148: 1 | S148: 1 | T148: 1 | U148: 1 | V148: 1 | W148: 1 | X148: 1 | Y148: 1
B149: 1 | C149: 6 | D149: 6 | E149: 8 | F149: 1 | G149: n | H149: n | I149: -4.1 | L149: 16 | O149: 0 | P149: 0 | Q149: 0 | R149: 1 | S149: 1 | T149: 1 | U149: 1 | V149: 1 | W149: 1 | X149: 1 | Y149: 1
B150: 1 | C150: 6 | D150: 6 | E150: 9 | F150: 1 | G150: n | H150: n | I150: -4.3 | L150: =IF(AND(H150="j",OR(AND($C$9<=E150,E150<$C$10),AND($D$9<=E150,E150<$D$10))),$J$5,$C$5)*F150 -> 16 | O150: 0 | P150: 0 | Q150: 0 | R150: 1 | S150: 1 | T150: 1 | U150: 1 | V150: 1 | W150: 1 | X150: 1 | Y150: 1
B151: 1 | C151: 6 | D151: 6 | E151: 10 | F151: =IF(AND(B151>$D$13,B151<$I$13),0,IF(B151=$D$13,IF(D151>=$D$12,0,1),IF(B151=$I$13,IF(D151<$I$12,0,1),1))) -> 1 | G151: n | H151: =IF(OR(AND($I$9=3,C151=7),AND($I$9=1,C151>5)),"n",IF($I$9=2,G151,"j")) -> n | I151: -4.1 | L151: 16 | O151: 0 | P151: 0 | Q151: 0 | R151: 1 | S151: 1 | T151: 1 | U151: 1 | V151: 1 | W151: 1 | X151: 1 | Y151: 1
B152: 1 | C152: 6 | D152: 6 | E152: 11 | F152: 1 | G152: n | H152: n | I152: -3.5 | L152: 16 | O152: =IF(($L152-$I152)/(($C$4-$C$16))>=O$21,1*$F152,0) -> 0 | P152: 0 | Q152: 0 | R152: 1 | S152: 1 | T152: 1 | U152: 1 | V152: 1 | W152: 1 | X152: 1 | Y152: 1
B153: 1 | C153: 6 | D153: 6 | E153: 12 | F153: 1 | G153: n | H153: n | I153: -2.5 | L153: 16 | O153: 0 | P153: 0 | Q153: 0 | R153: 0 | S153: 1 | T153: 1 | U153: 1 | V153: 1 | W153: 1 | X153: 1 | Y153: 1
B154: 1 | C154: 6 | D154: 6 | E154: 13 | F154: 1 | G154: n | H154: n | I154: -1.6 | L154: 16 | O154: 0 | P154: 0 | Q154: 0 | R154: 0 | S154: 1 | T154: 1 | U154: 1 | V154: 1 | W154: 1 | X154: 1 | Y154: 1
B155: 1 | C155: 6 | D155: 6 | E155: 14 | F155: 1 | G155: n | H155: n | I155: -1 | L155: 16 | O155: 0 | P155: 0 | Q155: 0 | R155: 0 | S155: 1 | T155: 1 | U155: 1 | V155: 1 | W155: 1 | X155: 1 | Y155: 1
B156: 1 | C156: 6 | D156: 6 | E156: 15 | F156: 1 | G156: n | H156: n | I156: -0.5 | L156: 16 | O156: 0 | P156: 0 | Q156: 0 | R156: 0 | S156: 1 | T156: 1 | U156: 1 | V156: 1 | W156: 1 | X156: 1 | Y156: 1
B157: 1 | C157: 6 | D157: 6 | E157: 16 | F157: 1 | G157: n | H157: n | I157: -0.6 | L157: 16 | O157: 0 | P157: 0 | Q157: 0 | R157: 0 | S157: 1 | T157: 1 | U157: 1 | V157: 1 | W157: 1 | X157: 1 | Y157: 1
B158: 1 | C158: 6 | D158: 6 | E158: 17 | F158: 1 | G158: n | H158: n | I158: -1.9 | L158: 16 | O158: 0 | P158: 0 | Q158: 0 | R158: 0 | S158: 1 | T158: 1 | U158: 1 | V158: 1 | W158: 1 | X158: 1 | Y158: 1
B159: 1 | C159: 6 | D159: 6 | E159: 18 | F159: 1 | G159: n | H159: n | I159: -3.2 | L159: 16 | O159: 0 | P159: 0 | Q159: 0 | R159: 1 | S159: 1 | T159: 1 | U159: 1 | V159: 1 | W159: 1 | X159: 1 | Y159: 1
B160: 1 | C160: 6 | D160: 6 | E160: 19 | F160: 1 | G160: n | H160: n | I160: -3.6 | L160: 16 | O160: 0 | P160: 0 | Q160: 0 | R160: 1 | S160: 1 | T160: 1 | U160: 1 | V160: 1 | W160: 1 | X160: 1 | Y160: 1
B161: 1 | C161: 6 | D161: 6 | E161: 20 | F161: 1 | G161: n | H161: n | I161: -3.9 | L161: 16 | O161: 0 | P161: 0 | Q161: 0 | R161: 1 | S161: 1 | T161: 1 | U161: 1 | V161: 1 | W161: 1 | X161: 1 | Y161: 1
B162: 1 | C162: 6 | D162: 6 | E162: 21 | F162: 1 | G162: n | H162: n | I162: -4.4 | L162: 16 | O162: =IF(($L162-$I162)/(($C$4-$C$16))>=O$21,1*$F162,0) -> 0 | P162: 0 | Q162: 0 | R162: 1 | S162: 1 | T162: 1 | U162: 1 | V162: 1 | W162: 1 | X162: 1 | Y162: 1
B163: 1 | C163: 6 | D163: 6 | E163: 22 | F163: 1 | G163: n | H163: n | I163: -5 | L163: 16 | O163: 0 | P163: 0 | Q163: 0 | R163: 1 | S163: 1 | T163: 1 | U163: 1 | V163: 1 | W163: 1 | X163: 1 | Y163: 1
B164: 1 | C164: 6 | D164: 6 | E164: 23 | F164: 1 | G164: n | H164: n | I164: -5.6 | L164: 16 | O164: 0 | P164: 0 | Q164: 1 | R164: 1 | S164: 1 | T164: 1 | U164: 1 | V164: 1 | W164: 1 | X164: 1 | Y164: 1
B165: 1 | C165: 6 | D165: 6 | E165: 24 | F165: 1 | G165: n | H165: n | I165: -5.7 | L165: 16 | O165: 0 | P165: 0 | Q165: 1 | R165: 1 | S165: 1 | T165: 1 | U165: 1 | V165: 1 | W165: 1 | X165: 1 | Y165: 1
B166: 1 | C166: 7 | D166: 7 | E166: 1 | F166: 1 | G166: n | H166: n | I166: -5.4 | L166: 16 | O166: 0 | P166: 0 | Q166: 0 | R166: 1 | S166: 1 | T166: 1 | U166: 1 | V166: 1 | W166: 1 | X166: 1 | Y166: 1
B167: 1 | C167: 7 | D167: 7 | E167: 2 | F167: 1 | G167: n | H167: n | I167: -5.1 | L167: 16 | O167: 0 | P167: 0 | Q167: 0 | R167: 1 | S167: 1 | T167: 1 | U167: 1 | V167: 1 | W167: 1 | X167: 1 | Y167: 1
B168: 1 | C168: 7 | D168: 7 | E168: 3 | F168: 1 | G168: n | H168: n | I168: -4.9 | L168: 16 | O168: 0 | P168: 0 | Q168: 0 | R168: 1 | S168: 1 | T168: 1 | U168: 1 | V168: 1 | W168: 1 | X168: 1 | Y168: 1
B169: 1 | C169: 7 | D169: 7 | E169: 4 | F169: 1 | G169: n | H169: n | I169: -5.5 | L169: 16 | O169: 0 | P169: 0 | Q169: 0 | R169: 1 | S169: 1 | T169: 1 | U169: 1 | V169: 1 | W169: 1 | X169: 1 | Y169: 1
B170: 1 | C170: 7 | D170: 7 | E170: 5 | F170: 1 | G170: n | H170: n | I170: -5.9 | L170: 16 | O170: 0 | P170: 0 | Q170: 1 | R170: 1 | S170: 1 | T170: 1 | U170: 1 | V170: 1 | W170: 1 | X170: 1 | Y170: 1
B171: 1 | C171: 7 | D171: 7 | E171: 6 | F171: 1 | G171: n | H171: n | I171: -6.2 | L171: 16 | O171: 0 | P171: 0 | Q171: 1 | R171: 1 | S171: 1 | T171: 1 | U171: 1 | V171: 1 | W171: 1 | X171: 1 | Y171: 1
B172: 1 | C172: 7 | D172: 7 | E172: 7 | F172: 1 | G172: n | H172: n | I172: -6.8 | L172: 16 | O172: =IF(($L172-$I172)/(($C$4-$C$16))>=O$21,1*$F172,0) -> 0 | P172: 0 | Q172: 1 | R172: 1 | S172: 1 | T172: 1 | U172: 1 | V172: 1 | W172: 1 | X172: 1 | Y172: 1
B173: 1 | C173: 7 | D173: 7 | E173: 8 | F173: 1 | G173: n | H173: n | I173: -7 | L173: 16 | O173: 0 | P173: 0 | Q173: 1 | R173: 1 | S173: 1 | T173: 1 | U173: 1 | V173: 1 | W173: 1 | X173: 1 | Y173: 1
B174: 1 | C174: 7 | D174: 7 | E174: 9 | F174: 1 | G174: n | H174: n | I174: -7.6 | L174: 16 | O174: 0 | P174: 0 | Q174: 1 | R174: 1 | S174: 1 | T174: 1 | U174: 1 | V174: 1 | W174: 1 | X174: 1 | Y174: 1
B175: 1 | C175: 7 | D175: 7 | E175: 10 | F175: 1 | G175: n | H175: n | I175: -8.3 | L175: 16 | O175: 0 | P175: 1 | Q175: 1 | R175: 1 | S175: 1 | T175: 1 | U175: 1 | V175: 1 | W175: 1 | X175: 1 | Y175: 1
B176: 1 | C176: 7 | D176: 7 | E176: 11 | F176: 1 | G176: n | H176: n | I176: -8.4 | L176: 16 | O176: 0 | P176: 1 | Q176: 1 | R176: 1 | S176: 1 | T176: 1 | U176: 1 | V176: 1 | W176: 1 | X176: 1 | Y176: 1
B177: 1 | C177: 7 | D177: 7 | E177: 12 | F177: 1 | G177: n | H177: n | I177: -7.7 | L177: 16 | O177: 0 | P177: 0 | Q177: 1 | R177: 1 | S177: 1 | T177: 1 | U177: 1 | V177: 1 | W177: 1 | X177: 1 | Y177: 1
B178: 1 | C178: 7 | D178: 7 | E178: 13 | F178: 1 | G178: n | H178: n | I178: -6.5 | L178: 16 | O178: 0 | P178: 0 | Q178: 1 | R178: 1 | S178: 1 | T178: 1 | U178: 1 | V178: 1 | W178: 1 | X178: 1 | Y178: 1
B179: 1 | C179: 7 | D179: 7 | E179: 14 | F179: 1 | G179: n | H179: n | I179: -6.3 | L179: 16 | O179: 0 | P179: 0 | Q179: 1 | R179: 1 | S179: 1 | T179: 1 | U179: 1 | V179: 1 | W179: 1 | X179: 1 | Y179: 1
B180: 1 | C180: 7 | D180: 7 | E180: 15 | F180: 1 | G180: n | H180: n | I180: -6.4 | L180: 16 | O180: 0 | P180: 0 | Q180: 1 | R180: 1 | S180: 1 | T180: 1 | U180: 1 | V180: 1 | W180: 1 | X180: 1 | Y180: 1
B181: 1 | C181: 7 | D181: 7 | E181: 16 | F181: 1 | G181: n | H181: n | I181: -6.3 | L181: 16 | O181: 0 | P181: 0 | Q181: 1 | R181: 1 | S181: 1 | T181: 1 | U181: 1 | V181: 1 | W181: 1 | X181: 1 | Y181: 1
B182: 1 | C182: 7 | D182: 7 | E182: 17 | F182: 1 | G182: n | H182: n | I182: -6.8 | L182: 16 | O182: =IF(($L182-$I182)/(($C$4-$C$16))>=O$21,1*$F182,0) -> 0 | P182: 0 | Q182: 1 | R182: 1 | S182: 1 | T182: 1 | U182: 1 | V182: 1 | W182: 1 | X182: 1 | Y182: 1
B183: 1 | C183: 7 | D183: 7 | E183: 18 | F183: 1 | G183: n | H183: n | I183: -7 | L183: 16 | O183: 0 | P183: 0 | Q183: 1 | R183: 1 | S183: 1 | T183: 1 | U183: 1 | V183: 1 | W183: 1 | X183: 1 | Y183: 1
B184: 1 | C184: 7 | D184: 7 | E184: 19 | F184: 1 | G184: n | H184: n | I184: -6.5 | L184: 16 | O184: 0 | P184: 0 | Q184: 1 | R184: 1 | S184: 1 | T184: 1 | U184: 1 | V184: 1 | W184: 1 | X184: 1 | Y184: 1
B185: 1 | C185: 7 | D185: 7 | E185: 20 | F185: 1 | G185: n | H185: n | I185: -6 | L185: 16 | O185: 0 | P185: 0 | Q185: 1 | R185: 1 | S185: 1 | T185: 1 | U185: 1 | V185: 1 | W185: 1 | X185: 1 | Y185: 1
B186: 1 | C186: 7 | D186: 7 | E186: 21 | F186: 1 | G186: n | H186: n | I186: -5.3 | L186: 16 | O186: 0 | P186: 0 | Q186: 0 | R186: 1 | S186: 1 | T186: 1 | U186: 1 | V186: 1 | W186: 1 | X186: 1 | Y186: 1
B187: 1 | C187: 7 | D187: 7 | E187: 22 | F187: 1 | G187: n | H187: n | I187: -5.3 | L187: 16 | O187: 0 | P187: 0 | Q187: 0 | R187: 1 | S187: 1 | T187: 1 | U187: 1 | V187: 1 | W187: 1 | X187: 1 | Y187: 1
B188: 1 | C188: 7 | D188: 7 | E188: 23 | F188: 1 | G188: n | H188: n | I188: -5.3 | L188: 16 | O188: 0 | P188: 0 | Q188: 0 | R188: 1 | S188: 1 | T188: 1 | U188: 1 | V188: 1 | W188: 1 | X188: 1 | Y188: 1
B189: 1 | C189: 7 | D189: 7 | E189: 24 | F189: 1 | G189: n | H189: n | I189: -5 | L189: 16 | O189: 0 | P189: 0 | Q189: 0 | R189: 1 | S189: 1 | T189: 1 | U189: 1 | V189: 1 | W189: 1 | X189: 1 | Y189: 1
B190: 1 | C190: 1 | D190: 8 | E190: 1 | F190: 1 | G190: j | H190: j | I190: -5 | L190: 16 | O190: 0 | P190: 0 | Q190: 0 | R190: 1 | S190: 1 | T190: 1 | U190: 1 | V190: 1 | W190: 1 | X190: 1 | Y190: 1
B191: 1 | C191: 1 | D191: 8 | E191: 2 | F191: 1 | G191: j | H191: j | I191: -5 | L191: 16 | O191: 0 | P191: 0 | Q191: 0 | R191: 1 | S191: 1 | T191: 1 | U191: 1 | V191: 1 | W191: 1 | X191: 1 | Y191: 1
B192: 1 | C192: 1 | D192: 8 | E192: 3 | F192: 1 | G192: j | H192: j | I192: -5.1 | L192: 16 | O192: =IF(($L192-$I192)/(($C$4-$C$16))>=O$21,1*$F192,0) -> 0 | P192: 0 | Q192: 0 | R192: 1 | S192: 1 | T192: 1 | U192: 1 | V192: 1 | W192: 1 | X192: 1 | Y192: 1
B193: 1 | C193: 1 | D193: 8 | E193: 4 | F193: 1 | G193: j | H193: j | I193: -5.2 | L193: 16 | O193: 0 | P193: 0 | Q193: 0 | R193: 1 | S193: 1 | T193: 1 | U193: 1 | V193: 1 | W193: 1 | X193: 1 | Y193: 1
B194: 1 | C194: 1 | D194: 8 | E194: 5 | F194: 1 | G194: j | H194: j | I194: -5.1 | L194: 16 | O194: 0 | P194: 0 | Q194: 0 | R194: 1 | S194: 1 | T194: 1 | U194: 1 | V194: 1 | W194: 1 | X194: 1 | Y194: 1
B195: 1 | C195: 1 | D195: 8 | E195: 6 | F195: 1 | G195: j | H195: j | I195: -5 | L195: 16 | O195: 0 | P195: 0 | Q195: 0 | R195: 1 | S195: 1 | T195: 1 | U195: 1 | V195: 1 | W195: 1 | X195: 1 | Y195: 1
B196: 1 | C196: 1 | D196: 8 | E196: 7 | F196: 1 | G196: j | H196: j | I196: -4.9 | L196: 16 | O196: 0 | P196: 0 | Q196: 0 | R196: 1 | S196: 1 | T196: 1 | U196: 1 | V196: 1 | W196: 1 | X196: 1 | Y196: 1
B197: 1 | C197: 1 | D197: 8 | E197: 8 | F197: 1 | G197: j | H197: j | I197: -5.3 | L197: 17 | O197: 0 | P197: 0 | Q197: 1 | R197: 1 | S197: 1 | T197: 1 | U197: 1 | V197: 1 | W197: 1 | X197: 1 | Y197: 1
B198: 1 | C198: 1 | D198: 8 | E198: 9 | F198: 1 | G198: j | H198: j | I198: -5.7 | L198: 17 | O198: 0 | P198: 0 | Q198: 1 | R198: 1 | S198: 1 | T198: 1 | U198: 1 | V198: 1 | W198: 1 | X198: 1 | Y198: 1
B199: 1 | C199: 1 | D199: 8 | E199: 10 | F199: 1 | G199: j | H199: j | I199: -5.6 | L199: 17 | O199: 0 | P199: 0 | Q199: 1 | R199: 1 | S199: 1 | T199: 1 | U199: 1 | V199: 1 | W199: 1 | X199: 1 | Y199: 1
B200: 1 | C200: 1 | D200: 8 | E200: 11 | F200: 1 | G200: j | H200: j | I200: -5.3 | L200: 17 | O200: 0 | P200: 0 | Q200: 1 | R200: 1 | S200: 1 | T200: 1 | U200: 1 | V200: 1 | W200: 1 | X200: 1 | Y200: 1
B201: 1 | C201: 1 | D201: 8 | E201: 12 | F201: 1 | G201: j | H201: j | I201: -5 | L201: 17 | O201: 0 | P201: 0 | Q201: 1 | R201: 1 | S201: 1 | T201: 1 | U201: 1 | V201: 1 | W201: 1 | X201: 1 | Y201: 1
B202: 1 | C202: 1 | D202: 8 | E202: 13 | F202: 1 | G202: j | H202: j | I202: -4.6 | L202: 17 | O202: =IF(($L202-$I202)/(($C$4-$C$16))>=O$21,1*$F202,0) -> 0 | P202: 0 | Q202: 1 | R202: 1 | S202: 1 | T202: 1 | U202: 1 | V202: 1 | W202: 1 | X202: 1 | Y202: 1
B203: 1 | C203: 1 | D203: 8 | E203: 14 | F203: 1 | G203: j | H203: j | I203: -3.9 | L203: 17 | O203: 0 | P203: 0 | Q203: 0 | R203: 1 | S203: 1 | T203: 1 | U203: 1 | V203: 1 | W203: 1 | X203: 1 | Y203: 1
B204: 1 | C204: 1 | D204: 8 | E204: 15 | F204: 1 | G204: j | H204: j | I204: -3.8 | L204: 17 | O204: 0 | P204: 0 | Q204: 0 | R204: 1 | S204: 1 | T204: 1 | U204: 1 | V204: 1 | W204: 1 | X204: 1 | Y204: 1
B205: 1 | C205: 1 | D205: 8 | E205: 16 | F205: 1 | G205: j | H205: j | I205: -3.7 | L205: 17 | O205: 0 | P205: 0 | Q205: 0 | R205: 1 | S205: 1 | T205: 1 | U205: 1 | V205: 1 | W205: 1 | X205: 1 | Y205: 1
B206: 1 | C206: 1 | D206: 8 | E206: 17 | F206: 1 | G206: j | H206: j | I206: -3.7 | L206: 17 | O206: 0 | P206: 0 | Q206: 0 | R206: 1 | S206: 1 | T206: 1 | U206: 1 | V206: 1 | W206: 1 | X206: 1 | Y206: 1
... 2044 more rows

Sheet Fichier météo StHubert (hidden)
B2: Etablissement de la monotone de chaleur
B4: T° cons jour = | C4: ='Calcul du rendement'!F42 -> 19 | D4: °C | E4: Gain de température pour apports gratuits : | J4: ='Calcul du rendement'!F44 -> 2 | K4: °C | L4: Température extérieure moyenne sur l'année | R4: =SUM(I22:I8781)/8760 -> 6.720821918 | S4: °C
B5: T° cons nuit = | C5: ='Calcul du rendement'!F43 -> 16 | D5: °C | E5: Température de jour effective : | J5: =C4-J4 -> 17 | K5: °C | L5: Température extérieure moyenne saison de chauffe | R5: =(SUM(I22:I3237)+SUM(I6190:I8781))/5800 -> 3.584689655 | S5: °C | T5: soit du 15 septembre au 15 mai
L6: Température extérieure moyenne hors saison de chauffe | R6: =SUM(I3238:I6190)/2960 -> 12.86918919 | S6: °C | T6: soit du 15 mai au 15 septembre
C7: Plage 1 | D7: Plage 2
C8: TRUE | D8: FALSE
B9: Heure début | C9: =IF($C$8,'Calcul du rendement'!F36,0) -> 8 | D9: =IF($D$8,'Calcul du rendement'!$F$37,0) -> 0 | E9: h | G9: Horaire hebdomadaire : | I9: 1
B10: Heure fin | C10: =IF($C$8,'Calcul du rendement'!H36,0) -> 18 | D10: =IF($D$8,'Calcul du rendement'!H37,0) -> 0 | E10: h
B12: Jour arrêt chauffage | D12: ='Calcul du rendement'!E50 -> 15 | G12: Jour début chauffage | I12: ='Calcul du rendement'!E51 -> 15
B13: Mois arrêt chauffage | D13: ='Calcul du rendement'!F50 -> 5 | G13: Mois début chauffage | I13: ='Calcul du rendement'!F51 -> 9
B16: T° de base | C16: ='Calcul du rendement'!G20 -> -8 | D16: °C
B18: Mois | C18: Semaine | D18: Jour | E18: Heure | F18: Saison | G18: Horaire | H18: Horaire | I18: T° ext. | L18: T° int.
F19: chauffe | G19: école | H19: hebdomadaire | T19: Monotone de chaleur
F20: =SUM(F22:F8781) -> 5808 | N20: Formule : | O20: = 1 x Saison de chauffe si (Tint - Text) / (Tconsigne - Tbase) > %Puissance
F21: [h] | I21: [°C] | L21: [°C] | N21: % Puissance | O21: 1 | P21: =0.9 -> 0.9 | Q21: 0.8 | R21: 0.7 | S21: 0.6 | T21: 0.5 | U21: 0.4 | V21: 0.3 | W21: 0.2 | X21: 0.1 | Y21: 0
B22: 1 | C22: 1 | D22: 1 | E22: 1 | F22: =IF(AND(B22>$D$13,B22<$I$13),0,IF(B22=$D$13,IF(D22>=$D$12,0,1),IF(B22=$I$13,IF(D22<$I$12,0,1),1))) -> 1 | G22: n | H22: =IF(OR(AND($I$9=3,C22=7),AND($I$9=1,C22>5)),"n",IF($I$9=2,G22,"j")) -> j | I22: -2.4 | L22: =IF(AND(H22="j",OR(AND($C$9<=E22,E22<$C$10),AND($D$9<=E22,E22<$D$10))),$J$5,$C$5)*F22 -> 16 | O22: =IF(($L22-$I22)/(($C$4-$C$16))>=O$21,1*$F22,0) -> 0 | P22: 0 | Q22: 0 | R22: 0 | S22: 1 | T22: 1 | U22: 1 | V22: 1 | W22: 1 | X22: 1 | Y22: 1
B23: 1 | C23: 1 | D23: 1 | E23: 2 | F23: =IF(AND(B23>$D$13,B23<$I$13),0,IF(B23=$D$13,IF(D23>=$D$12,0,1),IF(B23=$I$13,IF(D23<$I$12,0,1),1))) -> 1 | G23: n | H23: =IF(OR(AND($I$9=3,C23=7),AND($I$9=1,C23>5)),"n",IF($I$9=2,G23,"j")) -> j | I23: -2.6 | L23: 16 | O23: 0 | P23: 0 | Q23: 0 | R23: 0 | S23: 1 | T23: 1 | U23: 1 | V23: 1 | W23: 1 | X23: 1 | Y23: 1
B24: 1 | C24: 1 | D24: 1 | E24: 3 | F24: 1 | G24: n | H24: j | I24: -2.8 | L24: 16 | O24: 0 | P24: 0 | Q24: 0 | R24: 0 | S24: 1 | T24: 1 | U24: 1 | V24: 1 | W24: 1 | X24: 1 | Y24: 1
B25: 1 | C25: 1 | D25: 1 | E25: 4 | F25: 1 | G25: n | H25: j | I25: -2.9 | L25: 16 | O25: 0 | P25: 0 | Q25: 0 | R25: 1 | S25: 1 | T25: 1 | U25: 1 | V25: 1 | W25: 1 | X25: 1 | Y25: 1
B26: 1 | C26: 1 | D26: 1 | E26: 5 | F26: 1 | G26: n | H26: j | I26: -2.9 | L26: 16 | O26: 0 | P26: 0 | Q26: 0 | R26: 1 | S26: 1 | T26: 1 | U26: 1 | V26: 1 | W26: 1 | X26: 1 | Y26: 1
B27: 1 | C27: 1 | D27: 1 | E27: 6 | F27: 1 | G27: n | H27: j | I27: -3 | L27: 16 | O27: 0 | P27: 0 | Q27: 0 | R27: 1 | S27: 1 | T27: 1 | U27: 1 | V27: 1 | W27: 1 | X27: 1 | Y27: 1
B28: 1 | C28: 1 | D28: 1 | E28: 7 | F28: 1 | G28: n | H28: j | I28: -3.1 | L28: 16 | O28: 0 | P28: 0 | Q28: 0 | R28: 1 | S28: 1 | T28: 1 | U28: 1 | V28: 1 | W28: 1 | X28: 1 | Y28: 1
B29: 1 | C29: 1 | D29: 1 | E29: 8 | F29: 1 | G29: n | H29: j | I29: -3.1 | L29: 17 | O29: 0 | P29: 0 | Q29: 0 | R29: 1 | S29: 1 | T29: 1 | U29: 1 | V29: 1 | W29: 1 | X29: 1 | Y29: 1
B30: 1 | C30: 1 | D30: 1 | E30: 9 | F30: 1 | G30: n | H30: j | I30: -3.4 | L30: 17 | O30: 0 | P30: 0 | Q30: 0 | R30: 1 | S30: 1 | T30: 1 | U30: 1 | V30: 1 | W30: 1 | X30: 1 | Y30: 1
B31: 1 | C31: 1 | D31: 1 | E31: 10 | F31: 1 | G31: n | H31: j | I31: -3.7 | L31: 17 | O31: 0 | P31: 0 | Q31: 0 | R31: 1 | S31: 1 | T31: 1 | U31: 1 | V31: 1 | W31: 1 | X31: 1 | Y31: 1
B32: 1 | C32: 1 | D32: 1 | E32: 11 | F32: 1 | G32: n | H32: j | I32: -3.7 | L32: 17 | O32: 0 | P32: 0 | Q32: 0 | R32: 1 | S32: 1 | T32: 1 | U32: 1 | V32: 1 | W32: 1 | X32: 1 | Y32: 1
B33: 1 | C33: 1 | D33: 1 | E33: 12 | F33: 1 | G33: n | H33: j | I33: -3.4 | L33: 17 | O33: 0 | P33: 0 | Q33: 0 | R33: 1 | S33: 1 | T33: 1 | U33: 1 | V33: 1 | W33: 1 | X33: 1 | Y33: 1
B34: 1 | C34: 1 | D34: 1 | E34: 13 | F34: 1 | G34: n | H34: j | I34: -3 | L34: 17 | O34: 0 | P34: 0 | Q34: 0 | R34: 1 | S34: 1 | T34: 1 | U34: 1 | V34: 1 | W34: 1 | X34: 1 | Y34: 1
B35: 1 | C35: 1 | D35: 1 | E35: 14 | F35: 1 | G35: n | H35: j | I35: -2.8 | L35: 17 | O35: 0 | P35: 0 | Q35: 0 | R35: 1 | S35: 1 | T35: 1 | U35: 1 | V35: 1 | W35: 1 | X35: 1 | Y35: 1
B36: 1 | C36: 1 | D36: 1 | E36: 15 | F36: 1 | G36: n | H36: j | I36: -2.9 | L36: 17 | O36: 0 | P36: 0 | Q36: 0 | R36: 1 | S36: 1 | T36: 1 | U36: 1 | V36: 1 | W36: 1 | X36: 1 | Y36: 1
B37: 1 | C37: 1 | D37: 1 | E37: 16 | F37: 1 | G37: n | H37: j | I37: -2.9 | L37: 17 | O37: 0 | P37: 0 | Q37: 0 | R37: 1 | S37: 1 | T37: 1 | U37: 1 | V37: 1 | W37: 1 | X37: 1 | Y37: 1
B38: 1 | C38: 1 | D38: 1 | E38: 17 | F38: 1 | G38: n | H38: j | I38: -3 | L38: 17 | O38: =IF(($L38-$I38)/(($C$4-$C$16))>=O$21,1*$F38,0) -> 0 | P38: 0 | Q38: 0 | R38: 1 | S38: 1 | T38: 1 | U38: 1 | V38: 1 | W38: 1 | X38: 1 | Y38: 1
B39: 1 | C39: 1 | D39: 1 | E39: 18 | F39: 1 | G39: n | H39: j | I39: -3.1 | L39: 16 | O39: 0 | P39: 0 | Q39: 0 | R39: 1 | S39: 1 | T39: 1 | U39: 1 | V39: 1 | W39: 1 | X39: 1 | Y39: 1
B40: 1 | C40: 1 | D40: 1 | E40: 19 | F40: 1 | G40: n | H40: j | I40: -3.4 | L40: 16 | O40: 0 | P40: 0 | Q40: 0 | R40: 1 | S40: 1 | T40: 1 | U40: 1 | V40: 1 | W40: 1 | X40: 1 | Y40: 1
B41: 1 | C41: 1 | D41: 1 | E41: 20 | F41: 1 | G41: n | H41: j | I41: -3.5 | L41: 16 | O41: 0 | P41: 0 | Q41: 0 | R41: 1 | S41: 1 | T41: 1 | U41: 1 | V41: 1 | W41: 1 | X41: 1 | Y41: 1
B42: 1 | C42: 1 | D42: 1 | E42: 21 | F42: 1 | G42: n | H42: j | I42: -3.3 | L42: 16 | O42: 0 | P42: 0 | Q42: 0 | R42: 1 | S42: 1 | T42: 1 | U42: 1 | V42: 1 | W42: 1 | X42: 1 | Y42: 1
B43: 1 | C43: 1 | D43: 1 | E43: 22 | F43: 1 | G43: n | H43: j | I43: -3 | L43: 16 | O43: 0 | P43: 0 | Q43: 0 | R43: 1 | S43: 1 | T43: 1 | U43: 1 | V43: 1 | W43: 1 | X43: 1 | Y43: 1
B44: 1 | C44: 1 | D44: 1 | E44: 23 | F44: 1 | G44: n | H44: j | I44: -3 | L44: 16 | O44: 0 | P44: 0 | Q44: 0 | R44: 1 | S44: 1 | T44: 1 | U44: 1 | V44: 1 | W44: 1 | X44: 1 | Y44: 1
B45: 1 | C45: 1 | D45: 1 | E45: 24 | F45: 1 | G45: n | H45: j | I45: -2.9 | L45: 16 | O45: 0 | P45: 0 | Q45: 0 | R45: 1 | S45: 1 | T45: 1 | U45: 1 | V45: 1 | W45: 1 | X45: 1 | Y45: 1
B46: 1 | C46: 2 | D46: 2 | E46: 1 | F46: 1 | G46: n | H46: j | I46: -2.8 | L46: 16 | O46: 0 | P46: 0 | Q46: 0 | R46: 0 | S46: 1 | T46: 1 | U46: 1 | V46: 1 | W46: 1 | X46: 1 | Y46: 1
B47: 1 | C47: 2 | D47: 2 | E47: 2 | F47: 1 | G47: n | H47: j | I47: -2.7 | L47: 16 | O47: 0 | P47: 0 | Q47: 0 | R47: 0 | S47: 1 | T47: 1 | U47: 1 | V47: 1 | W47: 1 | X47: 1 | Y47: 1
B48: 1 | C48: 2 | D48: 2 | E48: 3 | F48: 1 | G48: n | H48: j | I48: -2.6 | L48: 16 | O48: 0 | P48: 0 | Q48: 0 | R48: 0 | S48: 1 | T48: 1 | U48: 1 | V48: 1 | W48: 1 | X48: 1 | Y48: 1
B49: 1 | C49: 2 | D49: 2 | E49: 4 | F49: 1 | G49: n | H49: j | I49: -2.4 | L49: 16 | O49: 0 | P49: 0 | Q49: 0 | R49: 0 | S49: 1 | T49: 1 | U49: 1 | V49: 1 | W49: 1 | X49: 1 | Y49: 1
B50: 1 | C50: 2 | D50: 2 | E50: 5 | F50: 1 | G50: n | H50: j | I50: -2.4 | L50: 16 | O50: 0 | P50: 0 | Q50: 0 | R50: 0 | S50: 1 | T50: 1 | U50: 1 | V50: 1 | W50: 1 | X50: 1 | Y50: 1
B51: 1 | C51: 2 | D51: 2 | E51: 6 | F51: 1 | G51: n | H51: j | I51: -2.5 | L51: 16 | O51: 0 | P51: 0 | Q51: 0 | R51: 0 | S51: 1 | T51: 1 | U51: 1 | V51: 1 | W51: 1 | X51: 1 | Y51: 1
B52: 1 | C52: 2 | D52: 2 | E52: 7 | F52: 1 | G52: n | H52: j | I52: -2.5 | L52: 16 | O52: 0 | P52: 0 | Q52: 0 | R52: 0 | S52: 1 | T52: 1 | U52: 1 | V52: 1 | W52: 1 | X52: 1 | Y52: 1
B53: 1 | C53: 2 | D53: 2 | E53: 8 | F53: 1 | G53: n | H53: j | I53: -2.4 | L53: 17 | O53: 0 | P53: 0 | Q53: 0 | R53: 1 | S53: 1 | T53: 1 | U53: 1 | V53: 1 | W53: 1 | X53: 1 | Y53: 1
B54: 1 | C54: 2 | D54: 2 | E54: 9 | F54: 1 | G54: n | H54: j | I54: -2.4 | L54: 17 | O54: =IF(($L54-$I54)/(($C$4-$C$16))>=O$21,1*$F54,0) -> 0 | P54: 0 | Q54: 0 | R54: 1 | S54: 1 | T54: 1 | U54: 1 | V54: 1 | W54: 1 | X54: 1 | Y54: 1
B55: 1 | C55: 2 | D55: 2 | E55: 10 | F55: 1 | G55: n | H55: j | I55: -2.5 | L55: 17 | O55: 0 | P55: 0 | Q55: 0 | R55: 1 | S55: 1 | T55: 1 | U55: 1 | V55: 1 | W55: 1 | X55: 1 | Y55: 1
B56: 1 | C56: 2 | D56: 2 | E56: 11 | F56: 1 | G56: n | H56: j | I56: -2.5 | L56: 17 | O56: 0 | P56: 0 | Q56: 0 | R56: 1 | S56: 1 | T56: 1 | U56: 1 | V56: 1 | W56: 1 | X56: 1 | Y56: 1
B57: 1 | C57: 2 | D57: 2 | E57: 12 | F57: 1 | G57: n | H57: j | I57: -2.3 | L57: 17 | O57: 0 | P57: 0 | Q57: 0 | R57: 1 | S57: 1 | T57: 1 | U57: 1 | V57: 1 | W57: 1 | X57: 1 | Y57: 1
B58: 1 | C58: 2 | D58: 2 | E58: 13 | F58: 1 | G58: n | H58: j | I58: -2.2 | L58: 17 | O58: 0 | P58: 0 | Q58: 0 | R58: 1 | S58: 1 | T58: 1 | U58: 1 | V58: 1 | W58: 1 | X58: 1 | Y58: 1
B59: 1 | C59: 2 | D59: 2 | E59: 14 | F59: 1 | G59: n | H59: j | I59: -2.2 | L59: 17 | O59: 0 | P59: 0 | Q59: 0 | R59: 1 | S59: 1 | T59: 1 | U59: 1 | V59: 1 | W59: 1 | X59: 1 | Y59: 1
B60: 1 | C60: 2 | D60: 2 | E60: 15 | F60: 1 | G60: n | H60: j | I60: -2.2 | L60: 17 | O60: 0 | P60: 0 | Q60: 0 | R60: 1 | S60: 1 | T60: 1 | U60: 1 | V60: 1 | W60: 1 | X60: 1 | Y60: 1
B61: 1 | C61: 2 | D61: 2 | E61: 16 | F61: 1 | G61: n | H61: j | I61: -2.2 | L61: 17 | O61: 0 | P61: 0 | Q61: 0 | R61: 1 | S61: 1 | T61: 1 | U61: 1 | V61: 1 | W61: 1 | X61: 1 | Y61: 1
B62: 1 | C62: 2 | D62: 2 | E62: 17 | F62: 1 | G62: n | H62: j | I62: -2.1 | L62: 17 | O62: 0 | P62: 0 | Q62: 0 | R62: 1 | S62: 1 | T62: 1 | U62: 1 | V62: 1 | W62: 1 | X62: 1 | Y62: 1
B63: 1 | C63: 2 | D63: 2 | E63: 18 | F63: 1 | G63: n | H63: j | I63: -2.1 | L63: 16 | O63: 0 | P63: 0 | Q63: 0 | R63: 0 | S63: 1 | T63: 1 | U63: 1 | V63: 1 | W63: 1 | X63: 1 | Y63: 1
B64: 1 | C64: 2 | D64: 2 | E64: 19 | F64: 1 | G64: n | H64: j | I64: -2.1 | L64: 16 | O64: 0 | P64: 0 | Q64: 0 | R64: 0 | S64: 1 | T64: 1 | U64: 1 | V64: 1 | W64: 1 | X64: 1 | Y64: 1
B65: 1 | C65: 2 | D65: 2 | E65: 20 | F65: 1 | G65: n | H65: j | I65: -2.2 | L65: 16 | O65: 0 | P65: 0 | Q65: 0 | R65: 0 | S65: 1 | T65: 1 | U65: 1 | V65: 1 | W65: 1 | X65: 1 | Y65: 1
B66: 1 | C66: 2 | D66: 2 | E66: 21 | F66: 1 | G66: n | H66: j | I66: -2.3 | L66: 16 | O66: 0 | P66: 0 | Q66: 0 | R66: 0 | S66: 1 | T66: 1 | U66: 1 | V66: 1 | W66: 1 | X66: 1 | Y66: 1
B67: 1 | C67: 2 | D67: 2 | E67: 22 | F67: 1 | G67: n | H67: j | I67: -2.3 | L67: 16 | O67: 0 | P67: 0 | Q67: 0 | R67: 0 | S67: 1 | T67: 1 | U67: 1 | V67: 1 | W67: 1 | X67: 1 | Y67: 1
B68: 1 | C68: 2 | D68: 2 | E68: 23 | F68: 1 | G68: n | H68: j | I68: -2.3 | L68: 16 | O68: 0 | P68: 0 | Q68: 0 | R68: 0 | S68: 1 | T68: 1 | U68: 1 | V68: 1 | W68: 1 | X68: 1 | Y68: 1
B69: 1 | C69: 2 | D69: 2 | E69: 24 | F69: 1 | G69: n | H69: j | I69: -2.4 | L69: 16 | O69: 0 | P69: 0 | Q69: 0 | R69: 0 | S69: 1 | T69: 1 | U69: 1 | V69: 1 | W69: 1 | X69: 1 | Y69: 1
B70: 1 | C70: 3 | D70: 3 | E70: 1 | F70: 1 | G70: n | H70: j | I70: -2.8 | L70: 16 | O70: =IF(($L70-$I70)/(($C$4-$C$16))>=O$21,1*$F70,0) -> 0 | P70: 0 | Q70: 0 | R70: 0 | S70: 1 | T70: 1 | U70: 1 | V70: 1 | W70: 1 | X70: 1 | Y70: 1
B71: 1 | C71: 3 | D71: 3 | E71: 2 | F71: 1 | G71: n | H71: j | I71: -2.9 | L71: 16 | O71: 0 | P71: 0 | Q71: 0 | R71: 1 | S71: 1 | T71: 1 | U71: 1 | V71: 1 | W71: 1 | X71: 1 | Y71: 1
B72: 1 | C72: 3 | D72: 3 | E72: 3 | F72: 1 | G72: n | H72: j | I72: -2.9 | L72: 16 | O72: 0 | P72: 0 | Q72: 0 | R72: 1 | S72: 1 | T72: 1 | U72: 1 | V72: 1 | W72: 1 | X72: 1 | Y72: 1
B73: 1 | C73: 3 | D73: 3 | E73: 4 | F73: 1 | G73: n | H73: j | I73: -2.7 | L73: 16 | O73: 0 | P73: 0 | Q73: 0 | R73: 0 | S73: 1 | T73: 1 | U73: 1 | V73: 1 | W73: 1 | X73: 1 | Y73: 1
B74: 1 | C74: 3 | D74: 3 | E74: 5 | F74: 1 | G74: n | H74: j | I74: -2.6 | L74: 16 | O74: 0 | P74: 0 | Q74: 0 | R74: 0 | S74: 1 | T74: 1 | U74: 1 | V74: 1 | W74: 1 | X74: 1 | Y74: 1
B75: 1 | C75: 3 | D75: 3 | E75: 6 | F75: 1 | G75: n | H75: j | I75: -2.7 | L75: 16 | O75: 0 | P75: 0 | Q75: 0 | R75: 0 | S75: 1 | T75: 1 | U75: 1 | V75: 1 | W75: 1 | X75: 1 | Y75: 1
B76: 1 | C76: 3 | D76: 3 | E76: 7 | F76: 1 | G76: n | H76: j | I76: -2.7 | L76: 16 | O76: 0 | P76: 0 | Q76: 0 | R76: 0 | S76: 1 | T76: 1 | U76: 1 | V76: 1 | W76: 1 | X76: 1 | Y76: 1
B77: 1 | C77: 3 | D77: 3 | E77: 8 | F77: 1 | G77: n | H77: j | I77: -2.7 | L77: 17 | O77: 0 | P77: 0 | Q77: 0 | R77: 1 | S77: 1 | T77: 1 | U77: 1 | V77: 1 | W77: 1 | X77: 1 | Y77: 1
B78: 1 | C78: 3 | D78: 3 | E78: 9 | F78: 1 | G78: n | H78: j | I78: -2.6 | L78: 17 | O78: 0 | P78: 0 | Q78: 0 | R78: 1 | S78: 1 | T78: 1 | U78: 1 | V78: 1 | W78: 1 | X78: 1 | Y78: 1
B79: 1 | C79: 3 | D79: 3 | E79: 10 | F79: 1 | G79: n | H79: j | I79: -2.5 | L79: 17 | O79: 0 | P79: 0 | Q79: 0 | R79: 1 | S79: 1 | T79: 1 | U79: 1 | V79: 1 | W79: 1 | X79: 1 | Y79: 1
B80: 1 | C80: 3 | D80: 3 | E80: 11 | F80: 1 | G80: n | H80: j | I80: -2.3 | L80: 17 | O80: 0 | P80: 0 | Q80: 0 | R80: 1 | S80: 1 | T80: 1 | U80: 1 | V80: 1 | W80: 1 | X80: 1 | Y80: 1
B81: 1 | C81: 3 | D81: 3 | E81: 12 | F81: 1 | G81: n | H81: j | I81: -2 | L81: 17 | O81: 0 | P81: 0 | Q81: 0 | R81: 1 | S81: 1 | T81: 1 | U81: 1 | V81: 1 | W81: 1 | X81: 1 | Y81: 1
B82: 1 | C82: 3 | D82: 3 | E82: 13 | F82: 1 | G82: n | H82: j | I82: -1.9 | L82: 17 | O82: 0 | P82: 0 | Q82: 0 | R82: 1 | S82: 1 | T82: 1 | U82: 1 | V82: 1 | W82: 1 | X82: 1 | Y82: 1
B83: 1 | C83: 3 | D83: 3 | E83: 14 | F83: 1 | G83: n | H83: j | I83: -1.9 | L83: 17 | O83: 0 | P83: 0 | Q83: 0 | R83: 1 | S83: 1 | T83: 1 | U83: 1 | V83: 1 | W83: 1 | X83: 1 | Y83: 1
B84: 1 | C84: 3 | D84: 3 | E84: 15 | F84: 1 | G84: n | H84: j | I84: -2.1 | L84: 17 | O84: 0 | P84: 0 | Q84: 0 | R84: 1 | S84: 1 | T84: 1 | U84: 1 | V84: 1 | W84: 1 | X84: 1 | Y84: 1
B85: 1 | C85: 3 | D85: 3 | E85: 16 | F85: 1 | G85: n | H85: j | I85: -2.4 | L85: 17 | O85: 0 | P85: 0 | Q85: 0 | R85: 1 | S85: 1 | T85: 1 | U85: 1 | V85: 1 | W85: 1 | X85: 1 | Y85: 1
B86: 1 | C86: 3 | D86: 3 | E86: 17 | F86: 1 | G86: n | H86: j | I86: -2.9 | L86: =IF(AND(H86="j",OR(AND($C$9<=E86,E86<$C$10),AND($D$9<=E86,E86<$D$10))),$J$5,$C$5)*F86 -> 17 | O86: =IF(($L86-$I86)/(($C$4-$C$16))>=O$21,1*$F86,0) -> 0 | P86: 0 | Q86: 0 | R86: 1 | S86: 1 | T86: 1 | U86: 1 | V86: 1 | W86: 1 | X86: 1 | Y86: 1
B87: 1 | C87: 3 | D87: 3 | E87: 18 | F87: =IF(AND(B87>$D$13,B87<$I$13),0,IF(B87=$D$13,IF(D87>=$D$12,0,1),IF(B87=$I$13,IF(D87<$I$12,0,1),1))) -> 1 | G87: n | H87: =IF(OR(AND($I$9=3,C87=7),AND($I$9=1,C87>5)),"n",IF($I$9=2,G87,"j")) -> j | I87: -3.3 | L87: 16 | O87: 0 | P87: 0 | Q87: 0 | R87: 1 | S87: 1 | T87: 1 | U87: 1 | V87: 1 | W87: 1 | X87: 1 | Y87: 1
B88: 1 | C88: 3 | D88: 3 | E88: 19 | F88: 1 | G88: n | H88: j | I88: -3.5 | L88: 16 | O88: 0 | P88: 0 | Q88: 0 | R88: 1 | S88: 1 | T88: 1 | U88: 1 | V88: 1 | W88: 1 | X88: 1 | Y88: 1
B89: 1 | C89: 3 | D89: 3 | E89: 20 | F89: 1 | G89: n | H89: j | I89: -3.5 | L89: 16 | O89: 0 | P89: 0 | Q89: 0 | R89: 1 | S89: 1 | T89: 1 | U89: 1 | V89: 1 | W89: 1 | X89: 1 | Y89: 1
B90: 1 | C90: 3 | D90: 3 | E90: 21 | F90: 1 | G90: n | H90: j | I90: -3.5 | L90: 16 | O90: 0 | P90: 0 | Q90: 0 | R90: 1 | S90: 1 | T90: 1 | U90: 1 | V90: 1 | W90: 1 | X90: 1 | Y90: 1
B91: 1 | C91: 3 | D91: 3 | E91: 22 | F91: 1 | G91: n | H91: j | I91: -3.7 | L91: 16 | O91: 0 | P91: 0 | Q91: 0 | R91: 1 | S91: 1 | T91: 1 | U91: 1 | V91: 1 | W91: 1 | X91: 1 | Y91: 1
B92: 1 | C92: 3 | D92: 3 | E92: 23 | F92: 1 | G92: n | H92: j | I92: -3.7 | L92: 16 | O92: 0 | P92: 0 | Q92: 0 | R92: 1 | S92: 1 | T92: 1 | U92: 1 | V92: 1 | W92: 1 | X92: 1 | Y92: 1
B93: 1 | C93: 3 | D93: 3 | E93: 24 | F93: 1 | G93: n | H93: j | I93: -3.7 | L93: 16 | O93: 0 | P93: 0 | Q93: 0 | R93: 1 | S93: 1 | T93: 1 | U93: 1 | V93: 1 | W93: 1 | X93: 1 | Y93: 1
B94: 1 | C94: 4 | D94: 4 | E94: 1 | F94: 1 | G94: n | H94: j | I94: -3.9 | L94: 16 | O94: 0 | P94: 0 | Q94: 0 | R94: 1 | S94: 1 | T94: 1 | U94: 1 | V94: 1 | W94: 1 | X94: 1 | Y94: 1
B95: 1 | C95: 4 | D95: 4 | E95: 2 | F95: 1 | G95: n | H95: j | I95: -3.9 | L95: 16 | O95: 0 | P95: 0 | Q95: 0 | R95: 1 | S95: 1 | T95: 1 | U95: 1 | V95: 1 | W95: 1 | X95: 1 | Y95: 1
B96: 1 | C96: 4 | D96: 4 | E96: 3 | F96: 1 | G96: n | H96: j | I96: -3.9 | L96: 16 | O96: 0 | P96: 0 | Q96: 0 | R96: 1 | S96: 1 | T96: 1 | U96: 1 | V96: 1 | W96: 1 | X96: 1 | Y96: 1
B97: 1 | C97: 4 | D97: 4 | E97: 4 | F97: 1 | G97: n | H97: j | I97: -3.9 | L97: 16 | O97: 0 | P97: 0 | Q97: 0 | R97: 1 | S97: 1 | T97: 1 | U97: 1 | V97: 1 | W97: 1 | X97: 1 | Y97: 1
B98: 1 | C98: 4 | D98: 4 | E98: 5 | F98: 1 | G98: n | H98: j | I98: -3.8 | L98: 16 | O98: 0 | P98: 0 | Q98: 0 | R98: 1 | S98: 1 | T98: 1 | U98: 1 | V98: 1 | W98: 1 | X98: 1 | Y98: 1
B99: 1 | C99: 4 | D99: 4 | E99: 6 | F99: 1 | G99: n | H99: j | I99: -3.2 | L99: 16 | O99: 0 | P99: 0 | Q99: 0 | R99: 1 | S99: 1 | T99: 1 | U99: 1 | V99: 1 | W99: 1 | X99: 1 | Y99: 1
B100: 1 | C100: 4 | D100: 4 | E100: 7 | F100: 1 | G100: n | H100: j | I100: -2.9 | L100: 16 | O100: 0 | P100: 0 | Q100: 0 | R100: 1 | S100: 1 | T100: 1 | U100: 1 | V100: 1 | W100: 1 | X100: 1 | Y100: 1
B101: 1 | C101: 4 | D101: 4 | E101: 8 | F101: 1 | G101: n | H101: j | I101: -3.1 | L101: 17 | O101: 0 | P101: 0 | Q101: 0 | R101: 1 | S101: 1 | T101: 1 | U101: 1 | V101: 1 | W101: 1 | X101: 1 | Y101: 1
B102: 1 | C102: 4 | D102: 4 | E102: 9 | F102: 1 | G102: n | H102: j | I102: -2.9 | L102: 17 | O102: =IF(($L102-$I102)/(($C$4-$C$16))>=O$21,1*$F102,0) -> 0 | P102: 0 | Q102: 0 | R102: 1 | S102: 1 | T102: 1 | U102: 1 | V102: 1 | W102: 1 | X102: 1 | Y102: 1
B103: 1 | C103: 4 | D103: 4 | E103: 10 | F103: 1 | G103: n | H103: j | I103: -2.7 | L103: 17 | O103: 0 | P103: 0 | Q103: 0 | R103: 1 | S103: 1 | T103: 1 | U103: 1 | V103: 1 | W103: 1 | X103: 1 | Y103: 1
B104: 1 | C104: 4 | D104: 4 | E104: 11 | F104: 1 | G104: n | H104: j | I104: -2.3 | L104: 17 | O104: 0 | P104: 0 | Q104: 0 | R104: 1 | S104: 1 | T104: 1 | U104: 1 | V104: 1 | W104: 1 | X104: 1 | Y104: 1
B105: 1 | C105: 4 | D105: 4 | E105: 12 | F105: 1 | G105: n | H105: j | I105: -1.8 | L105: 17 | O105: 0 | P105: 0 | Q105: 0 | R105: 0 | S105: 1 | T105: 1 | U105: 1 | V105: 1 | W105: 1 | X105: 1 | Y105: 1
B106: 1 | C106: 4 | D106: 4 | E106: 13 | F106: 1 | G106: n | H106: j | I106: -1.4 | L106: 17 | O106: 0 | P106: 0 | Q106: 0 | R106: 0 | S106: 1 | T106: 1 | U106: 1 | V106: 1 | W106: 1 | X106: 1 | Y106: 1
B107: 1 | C107: 4 | D107: 4 | E107: 14 | F107: 1 | G107: n | H107: j | I107: -1 | L107: 17 | O107: 0 | P107: 0 | Q107: 0 | R107: 0 | S107: 1 | T107: 1 | U107: 1 | V107: 1 | W107: 1 | X107: 1 | Y107: 1
B108: 1 | C108: 4 | D108: 4 | E108: 15 | F108: 1 | G108: n | H108: j | I108: -0.5 | L108: 17 | O108: 0 | P108: 0 | Q108: 0 | R108: 0 | S108: 1 | T108: 1 | U108: 1 | V108: 1 | W108: 1 | X108: 1 | Y108: 1
B109: 1 | C109: 4 | D109: 4 | E109: 16 | F109: 1 | G109: n | H109: j | I109: -0.2 | L109: 17 | O109: 0 | P109: 0 | Q109: 0 | R109: 0 | S109: 1 | T109: 1 | U109: 1 | V109: 1 | W109: 1 | X109: 1 | Y109: 1
B110: 1 | C110: 4 | D110: 4 | E110: 17 | F110: 1 | G110: n | H110: j | I110: 0 | L110: 17 | O110: 0 | P110: 0 | Q110: 0 | R110: 0 | S110: 1 | T110: 1 | U110: 1 | V110: 1 | W110: 1 | X110: 1 | Y110: 1
B111: 1 | C111: 4 | D111: 4 | E111: 18 | F111: 1 | G111: n | H111: j | I111: 0.1 | L111: 16 | O111: 0 | P111: 0 | Q111: 0 | R111: 0 | S111: 0 | T111: 1 | U111: 1 | V111: 1 | W111: 1 | X111: 1 | Y111: 1
B112: 1 | C112: 4 | D112: 4 | E112: 19 | F112: 1 | G112: n | H112: j | I112: 0.2 | L112: 16 | O112: 0 | P112: 0 | Q112: 0 | R112: 0 | S112: 0 | T112: 1 | U112: 1 | V112: 1 | W112: 1 | X112: 1 | Y112: 1
B113: 1 | C113: 4 | D113: 4 | E113: 20 | F113: 1 | G113: n | H113: j | I113: 0.2 | L113: 16 | O113: 0 | P113: 0 | Q113: 0 | R113: 0 | S113: 0 | T113: 1 | U113: 1 | V113: 1 | W113: 1 | X113: 1 | Y113: 1
B114: 1 | C114: 4 | D114: 4 | E114: 21 | F114: 1 | G114: n | H114: j | I114: 0.4 | L114: 16 | O114: 0 | P114: 0 | Q114: 0 | R114: 0 | S114: 0 | T114: 1 | U114: 1 | V114: 1 | W114: 1 | X114: 1 | Y114: 1
B115: 1 | C115: 4 | D115: 4 | E115: 22 | F115: 1 | G115: n | H115: j | I115: 0.6 | L115: 16 | O115: 0 | P115: 0 | Q115: 0 | R115: 0 | S115: 0 | T115: 1 | U115: 1 | V115: 1 | W115: 1 | X115: 1 | Y115: 1
B116: 1 | C116: 4 | D116: 4 | E116: 23 | F116: 1 | G116: n | H116: j | I116: 0.8 | L116: 16 | O116: 0 | P116: 0 | Q116: 0 | R116: 0 | S116: 0 | T116: 1 | U116: 1 | V116: 1 | W116: 1 | X116: 1 | Y116: 1
B117: 1 | C117: 4 | D117: 4 | E117: 24 | F117: 1 | G117: n | H117: j | I117: 0.8 | L117: 16 | O117: 0 | P117: 0 | Q117: 0 | R117: 0 | S117: 0 | T117: 1 | U117: 1 | V117: 1 | W117: 1 | X117: 1 | Y117: 1
B118: 1 | C118: 5 | D118: 5 | E118: 1 | F118: 1 | G118: n | H118: j | I118: 0.7 | L118: 16 | O118: =IF(($L118-$I118)/(($C$4-$C$16))>=O$21,1*$F118,0) -> 0 | P118: 0 | Q118: 0 | R118: 0 | S118: 0 | T118: 1 | U118: 1 | V118: 1 | W118: 1 | X118: 1 | Y118: 1
B119: 1 | C119: 5 | D119: 5 | E119: 2 | F119: 1 | G119: n | H119: j | I119: 0.7 | L119: 16 | O119: 0 | P119: 0 | Q119: 0 | R119: 0 | S119: 0 | T119: 1 | U119: 1 | V119: 1 | W119: 1 | X119: 1 | Y119: 1
B120: 1 | C120: 5 | D120: 5 | E120: 3 | F120: 1 | G120: n | H120: j | I120: 0.8 | L120: 16 | O120: 0 | P120: 0 | Q120: 0 | R120: 0 | S120: 0 | T120: 1 | U120: 1 | V120: 1 | W120: 1 | X120: 1 | Y120: 1
B121: 1 | C121: 5 | D121: 5 | E121: 4 | F121: 1 | G121: n | H121: j | I121: 0.9 | L121: 16 | O121: 0 | P121: 0 | Q121: 0 | R121: 0 | S121: 0 | T121: 1 | U121: 1 | V121: 1 | W121: 1 | X121: 1 | Y121: 1
B122: 1 | C122: 5 | D122: 5 | E122: 5 | F122: 1 | G122: n | H122: j | I122: 0.8 | L122: 16 | O122: 0 | P122: 0 | Q122: 0 | R122: 0 | S122: 0 | T122: 1 | U122: 1 | V122: 1 | W122: 1 | X122: 1 | Y122: 1
B123: 1 | C123: 5 | D123: 5 | E123: 6 | F123: 1 | G123: n | H123: j | I123: 0.7 | L123: 16 | O123: 0 | P123: 0 | Q123: 0 | R123: 0 | S123: 0 | T123: 1 | U123: 1 | V123: 1 | W123: 1 | X123: 1 | Y123: 1
B124: 1 | C124: 5 | D124: 5 | E124: 7 | F124: 1 | G124: n | H124: j | I124: 0.5 | L124: 16 | O124: 0 | P124: 0 | Q124: 0 | R124: 0 | S124: 0 | T124: 1 | U124: 1 | V124: 1 | W124: 1 | X124: 1 | Y124: 1
B125: 1 | C125: 5 | D125: 5 | E125: 8 | F125: 1 | G125: n | H125: j | I125: 0.4 | L125: 17 | O125: 0 | P125: 0 | Q125: 0 | R125: 0 | S125: 1 | T125: 1 | U125: 1 | V125: 1 | W125: 1 | X125: 1 | Y125: 1
B126: 1 | C126: 5 | D126: 5 | E126: 9 | F126: 1 | G126: n | H126: j | I126: 0.5 | L126: 17 | O126: 0 | P126: 0 | Q126: 0 | R126: 0 | S126: 1 | T126: 1 | U126: 1 | V126: 1 | W126: 1 | X126: 1 | Y126: 1
B127: 1 | C127: 5 | D127: 5 | E127: 10 | F127: 1 | G127: n | H127: j | I127: 0.7 | L127: 17 | O127: 0 | P127: 0 | Q127: 0 | R127: 0 | S127: 1 | T127: 1 | U127: 1 | V127: 1 | W127: 1 | X127: 1 | Y127: 1
B128: 1 | C128: 5 | D128: 5 | E128: 11 | F128: 1 | G128: n | H128: j | I128: 0.7 | L128: 17 | O128: 0 | P128: 0 | Q128: 0 | R128: 0 | S128: 1 | T128: 1 | U128: 1 | V128: 1 | W128: 1 | X128: 1 | Y128: 1
B129: 1 | C129: 5 | D129: 5 | E129: 12 | F129: 1 | G129: n | H129: j | I129: 0.7 | L129: 17 | O129: 0 | P129: 0 | Q129: 0 | R129: 0 | S129: 1 | T129: 1 | U129: 1 | V129: 1 | W129: 1 | X129: 1 | Y129: 1
B130: 1 | C130: 5 | D130: 5 | E130: 13 | F130: 1 | G130: n | H130: j | I130: 0.8 | L130: 17 | O130: 0 | P130: 0 | Q130: 0 | R130: 0 | S130: 1 | T130: 1 | U130: 1 | V130: 1 | W130: 1 | X130: 1 | Y130: 1
B131: 1 | C131: 5 | D131: 5 | E131: 14 | F131: 1 | G131: n | H131: j | I131: 0.8 | L131: 17 | O131: 0 | P131: 0 | Q131: 0 | R131: 0 | S131: 1 | T131: 1 | U131: 1 | V131: 1 | W131: 1 | X131: 1 | Y131: 1
B132: 1 | C132: 5 | D132: 5 | E132: 15 | F132: 1 | G132: n | H132: j | I132: 0.8 | L132: 17 | O132: 0 | P132: 0 | Q132: 0 | R132: 0 | S132: 1 | T132: 1 | U132: 1 | V132: 1 | W132: 1 | X132: 1 | Y132: 1
B133: 1 | C133: 5 | D133: 5 | E133: 16 | F133: 1 | G133: n | H133: j | I133: 0.7 | L133: 17 | O133: 0 | P133: 0 | Q133: 0 | R133: 0 | S133: 1 | T133: 1 | U133: 1 | V133: 1 | W133: 1 | X133: 1 | Y133: 1
B134: 1 | C134: 5 | D134: 5 | E134: 17 | F134: 1 | G134: n | H134: j | I134: 0.7 | L134: 17 | O134: =IF(($L134-$I134)/(($C$4-$C$16))>=O$21,1*$F134,0) -> 0 | P134: 0 | Q134: 0 | R134: 0 | S134: 1 | T134: 1 | U134: 1 | V134: 1 | W134: 1 | X134: 1 | Y134: 1
B135: 1 | C135: 5 | D135: 5 | E135: 18 | F135: 1 | G135: n | H135: j | I135: 0.7 | L135: 16 | O135: 0 | P135: 0 | Q135: 0 | R135: 0 | S135: 0 | T135: 1 | U135: 1 | V135: 1 | W135: 1 | X135: 1 | Y135: 1
B136: 1 | C136: 5 | D136: 5 | E136: 19 | F136: 1 | G136: n | H136: j | I136: 0.8 | L136: 16 | O136: 0 | P136: 0 | Q136: 0 | R136: 0 | S136: 0 | T136: 1 | U136: 1 | V136: 1 | W136: 1 | X136: 1 | Y136: 1
B137: 1 | C137: 5 | D137: 5 | E137: 20 | F137: 1 | G137: n | H137: j | I137: 0.8 | L137: 16 | O137: 0 | P137: 0 | Q137: 0 | R137: 0 | S137: 0 | T137: 1 | U137: 1 | V137: 1 | W137: 1 | X137: 1 | Y137: 1
B138: 1 | C138: 5 | D138: 5 | E138: 21 | F138: 1 | G138: n | H138: j | I138: 0.7 | L138: 16 | O138: 0 | P138: 0 | Q138: 0 | R138: 0 | S138: 0 | T138: 1 | U138: 1 | V138: 1 | W138: 1 | X138: 1 | Y138: 1
B139: 1 | C139: 5 | D139: 5 | E139: 22 | F139: 1 | G139: n | H139: j | I139: 0.6 | L139: 16 | O139: 0 | P139: 0 | Q139: 0 | R139: 0 | S139: 0 | T139: 1 | U139: 1 | V139: 1 | W139: 1 | X139: 1 | Y139: 1
B140: 1 | C140: 5 | D140: 5 | E140: 23 | F140: 1 | G140: n | H140: j | I140: 0.9 | L140: 16 | O140: 0 | P140: 0 | Q140: 0 | R140: 0 | S140: 0 | T140: 1 | U140: 1 | V140: 1 | W140: 1 | X140: 1 | Y140: 1
B141: 1 | C141: 5 | D141: 5 | E141: 24 | F141: 1 | G141: n | H141: j | I141: 1 | L141: 16 | O141: 0 | P141: 0 | Q141: 0 | R141: 0 | S141: 0 | T141: 1 | U141: 1 | V141: 1 | W141: 1 | X141: 1 | Y141: 1
B142: 1 | C142: 6 | D142: 6 | E142: 1 | F142: 1 | G142: n | H142: n | I142: 0.7 | L142: 16 | O142: 0 | P142: 0 | Q142: 0 | R142: 0 | S142: 0 | T142: 1 | U142: 1 | V142: 1 | W142: 1 | X142: 1 | Y142: 1
B143: 1 | C143: 6 | D143: 6 | E143: 2 | F143: 1 | G143: n | H143: n | I143: 0.8 | L143: 16 | O143: 0 | P143: 0 | Q143: 0 | R143: 0 | S143: 0 | T143: 1 | U143: 1 | V143: 1 | W143: 1 | X143: 1 | Y143: 1
B144: 1 | C144: 6 | D144: 6 | E144: 3 | F144: 1 | G144: n | H144: n | I144: 0.5 | L144: 16 | O144: 0 | P144: 0 | Q144: 0 | R144: 0 | S144: 0 | T144: 1 | U144: 1 | V144: 1 | W144: 1 | X144: 1 | Y144: 1
B145: 1 | C145: 6 | D145: 6 | E145: 4 | F145: 1 | G145: n | H145: n | I145: 0.1 | L145: 16 | O145: 0 | P145: 0 | Q145: 0 | R145: 0 | S145: 0 | T145: 1 | U145: 1 | V145: 1 | W145: 1 | X145: 1 | Y145: 1
B146: 1 | C146: 6 | D146: 6 | E146: 5 | F146: 1 | G146: n | H146: n | I146: 0.2 | L146: 16 | O146: 0 | P146: 0 | Q146: 0 | R146: 0 | S146: 0 | T146: 1 | U146: 1 | V146: 1 | W146: 1 | X146: 1 | Y146: 1
B147: 1 | C147: 6 | D147: 6 | E147: 6 | F147: 1 | G147: n | H147: n | I147: 0.3 | L147: 16 | O147: 0 | P147: 0 | Q147: 0 | R147: 0 | S147: 0 | T147: 1 | U147: 1 | V147: 1 | W147: 1 | X147: 1 | Y147: 1
B148: 1 | C148: 6 | D148: 6 | E148: 7 | F148: 1 | G148: n | H148: n | I148: 0.6 | L148: 16 | O148: 0 | P148: 0 | Q148: 0 | R148: 0 | S148: 0 | T148: 1 | U148: 1 | V148: 1 | W148: 1 | X148: 1 | Y148: 1
B149: 1 | C149: 6 | D149: 6 | E149: 8 | F149: 1 | G149: n | H149: n | I149: 0.6 | L149: 16 | O149: 0 | P149: 0 | Q149: 0 | R149: 0 | S149: 0 | T149: 1 | U149: 1 | V149: 1 | W149: 1 | X149: 1 | Y149: 1
B150: 1 | C150: 6 | D150: 6 | E150: 9 | F150: 1 | G150: n | H150: n | I150: 0.6 | L150: =IF(AND(H150="j",OR(AND($C$9<=E150,E150<$C$10),AND($D$9<=E150,E150<$D$10))),$J$5,$C$5)*F150 -> 16 | O150: =IF(($L150-$I150)/(($C$4-$C$16))>=O$21,1*$F150,0) -> 0 | P150: 0 | Q150: 0 | R150: 0 | S150: 0 | T150: 1 | U150: 1 | V150: 1 | W150: 1 | X150: 1 | Y150: 1
B151: 1 | C151: 6 | D151: 6 | E151: 10 | F151: =IF(AND(B151>$D$13,B151<$I$13),0,IF(B151=$D$13,IF(D151>=$D$12,0,1),IF(B151=$I$13,IF(D151<$I$12,0,1),1))) -> 1 | G151: n | H151: =IF(OR(AND($I$9=3,C151=7),AND($I$9=1,C151>5)),"n",IF($I$9=2,G151,"j")) -> n | I151: 0.7 | L151: 16 | O151: 0 | P151: 0 | Q151: 0 | R151: 0 | S151: 0 | T151: 1 | U151: 1 | V151: 1 | W151: 1 | X151: 1 | Y151: 1
B152: 1 | C152: 6 | D152: 6 | E152: 11 | F152: 1 | G152: n | H152: n | I152: 0.8 | L152: 16 | O152: 0 | P152: 0 | Q152: 0 | R152: 0 | S152: 0 | T152: 1 | U152: 1 | V152: 1 | W152: 1 | X152: 1 | Y152: 1
B153: 1 | C153: 6 | D153: 6 | E153: 12 | F153: 1 | G153: n | H153: n | I153: 0.8 | L153: 16 | O153: 0 | P153: 0 | Q153: 0 | R153: 0 | S153: 0 | T153: 1 | U153: 1 | V153: 1 | W153: 1 | X153: 1 | Y153: 1
B154: 1 | C154: 6 | D154: 6 | E154: 13 | F154: 1 | G154: n | H154: n | I154: 0.8 | L154: 16 | O154: 0 | P154: 0 | Q154: 0 | R154: 0 | S154: 0 | T154: 1 | U154: 1 | V154: 1 | W154: 1 | X154: 1 | Y154: 1
B155: 1 | C155: 6 | D155: 6 | E155: 14 | F155: 1 | G155: n | H155: n | I155: 0.8 | L155: 16 | O155: 0 | P155: 0 | Q155: 0 | R155: 0 | S155: 0 | T155: 1 | U155: 1 | V155: 1 | W155: 1 | X155: 1 | Y155: 1
B156: 1 | C156: 6 | D156: 6 | E156: 15 | F156: 1 | G156: n | H156: n | I156: 0.8 | L156: 16 | O156: 0 | P156: 0 | Q156: 0 | R156: 0 | S156: 0 | T156: 1 | U156: 1 | V156: 1 | W156: 1 | X156: 1 | Y156: 1
B157: 1 | C157: 6 | D157: 6 | E157: 16 | F157: 1 | G157: n | H157: n | I157: 0.8 | L157: 16 | O157: 0 | P157: 0 | Q157: 0 | R157: 0 | S157: 0 | T157: 1 | U157: 1 | V157: 1 | W157: 1 | X157: 1 | Y157: 1
B158: 1 | C158: 6 | D158: 6 | E158: 17 | F158: 1 | G158: n | H158: n | I158: 0.8 | L158: 16 | O158: 0 | P158: 0 | Q158: 0 | R158: 0 | S158: 0 | T158: 1 | U158: 1 | V158: 1 | W158: 1 | X158: 1 | Y158: 1
B159: 1 | C159: 6 | D159: 6 | E159: 18 | F159: 1 | G159: n | H159: n | I159: 0.8 | L159: 16 | O159: 0 | P159: 0 | Q159: 0 | R159: 0 | S159: 0 | T159: 1 | U159: 1 | V159: 1 | W159: 1 | X159: 1 | Y159: 1
B160: 1 | C160: 6 | D160: 6 | E160: 19 | F160: 1 | G160: n | H160: n | I160: 0.4 | L160: 16 | O160: 0 | P160: 0 | Q160: 0 | R160: 0 | S160: 0 | T160: 1 | U160: 1 | V160: 1 | W160: 1 | X160: 1 | Y160: 1
B161: 1 | C161: 6 | D161: 6 | E161: 20 | F161: 1 | G161: n | H161: n | I161: 0.2 | L161: 16 | O161: 0 | P161: 0 | Q161: 0 | R161: 0 | S161: 0 | T161: 1 | U161: 1 | V161: 1 | W161: 1 | X161: 1 | Y161: 1
B162: 1 | C162: 6 | D162: 6 | E162: 21 | F162: 1 | G162: n | H162: n | I162: 0.6 | L162: 16 | O162: 0 | P162: 0 | Q162: 0 | R162: 0 | S162: 0 | T162: 1 | U162: 1 | V162: 1 | W162: 1 | X162: 1 | Y162: 1
B163: 1 | C163: 6 | D163: 6 | E163: 22 | F163: 1 | G163: n | H163: n | I163: 0.8 | L163: 16 | O163: 0 | P163: 0 | Q163: 0 | R163: 0 | S163: 0 | T163: 1 | U163: 1 | V163: 1 | W163: 1 | X163: 1 | Y163: 1
B164: 1 | C164: 6 | D164: 6 | E164: 23 | F164: 1 | G164: n | H164: n | I164: 0.6 | L164: 16 | O164: 0 | P164: 0 | Q164: 0 | R164: 0 | S164: 0 | T164: 1 | U164: 1 | V164: 1 | W164: 1 | X164: 1 | Y164: 1
B165: 1 | C165: 6 | D165: 6 | E165: 24 | F165: 1 | G165: n | H165: n | I165: 0.5 | L165: 16 | O165: 0 | P165: 0 | Q165: 0 | R165: 0 | S165: 0 | T165: 1 | U165: 1 | V165: 1 | W165: 1 | X165: 1 | Y165: 1
B166: 1 | C166: 7 | D166: 7 | E166: 1 | F166: 1 | G166: n | H166: n | I166: 0.6 | L166: 16 | O166: =IF(($L166-$I166)/(($C$4-$C$16))>=O$21,1*$F166,0) -> 0 | P166: 0 | Q166: 0 | R166: 0 | S166: 0 | T166: 1 | U166: 1 | V166: 1 | W166: 1 | X166: 1 | Y166: 1
B167: 1 | C167: 7 | D167: 7 | E167: 2 | F167: 1 | G167: n | H167: n | I167: 0.7 | L167: 16 | O167: 0 | P167: 0 | Q167: 0 | R167: 0 | S167: 0 | T167: 1 | U167: 1 | V167: 1 | W167: 1 | X167: 1 | Y167: 1
B168: 1 | C168: 7 | D168: 7 | E168: 3 | F168: 1 | G168: n | H168: n | I168: 0.7 | L168: 16 | O168: 0 | P168: 0 | Q168: 0 | R168: 0 | S168: 0 | T168: 1 | U168: 1 | V168: 1 | W168: 1 | X168: 1 | Y168: 1
B169: 1 | C169: 7 | D169: 7 | E169: 4 | F169: 1 | G169: n | H169: n | I169: 0.6 | L169: 16 | O169: 0 | P169: 0 | Q169: 0 | R169: 0 | S169: 0 | T169: 1 | U169: 1 | V169: 1 | W169: 1 | X169: 1 | Y169: 1
B170: 1 | C170: 7 | D170: 7 | E170: 5 | F170: 1 | G170: n | H170: n | I170: 0.3 | L170: 16 | O170: 0 | P170: 0 | Q170: 0 | R170: 0 | S170: 0 | T170: 1 | U170: 1 | V170: 1 | W170: 1 | X170: 1 | Y170: 1
B171: 1 | C171: 7 | D171: 7 | E171: 6 | F171: 1 | G171: n | H171: n | I171: 0 | L171: 16 | O171: 0 | P171: 0 | Q171: 0 | R171: 0 | S171: 0 | T171: 1 | U171: 1 | V171: 1 | W171: 1 | X171: 1 | Y171: 1
B172: 1 | C172: 7 | D172: 7 | E172: 7 | F172: 1 | G172: n | H172: n | I172: 0.1 | L172: 16 | O172: 0 | P172: 0 | Q172: 0 | R172: 0 | S172: 0 | T172: 1 | U172: 1 | V172: 1 | W172: 1 | X172: 1 | Y172: 1
B173: 1 | C173: 7 | D173: 7 | E173: 8 | F173: 1 | G173: n | H173: n | I173: 0.1 | L173: 16 | O173: 0 | P173: 0 | Q173: 0 | R173: 0 | S173: 0 | T173: 1 | U173: 1 | V173: 1 | W173: 1 | X173: 1 | Y173: 1
B174: 1 | C174: 7 | D174: 7 | E174: 9 | F174: 1 | G174: n | H174: n | I174: 0.1 | L174: 16 | O174: 0 | P174: 0 | Q174: 0 | R174: 0 | S174: 0 | T174: 1 | U174: 1 | V174: 1 | W174: 1 | X174: 1 | Y174: 1
B175: 1 | C175: 7 | D175: 7 | E175: 10 | F175: 1 | G175: n | H175: n | I175: 0.1 | L175: 16 | O175: 0 | P175: 0 | Q175: 0 | R175: 0 | S175: 0 | T175: 1 | U175: 1 | V175: 1 | W175: 1 | X175: 1 | Y175: 1
B176: 1 | C176: 7 | D176: 7 | E176: 11 | F176: 1 | G176: n | H176: n | I176: 0.1 | L176: 16 | O176: 0 | P176: 0 | Q176: 0 | R176: 0 | S176: 0 | T176: 1 | U176: 1 | V176: 1 | W176: 1 | X176: 1 | Y176: 1
B177: 1 | C177: 7 | D177: 7 | E177: 12 | F177: 1 | G177: n | H177: n | I177: 0.2 | L177: 16 | O177: 0 | P177: 0 | Q177: 0 | R177: 0 | S177: 0 | T177: 1 | U177: 1 | V177: 1 | W177: 1 | X177: 1 | Y177: 1
B178: 1 | C178: 7 | D178: 7 | E178: 13 | F178: 1 | G178: n | H178: n | I178: 0.5 | L178: 16 | O178: 0 | P178: 0 | Q178: 0 | R178: 0 | S178: 0 | T178: 1 | U178: 1 | V178: 1 | W178: 1 | X178: 1 | Y178: 1
B179: 1 | C179: 7 | D179: 7 | E179: 14 | F179: 1 | G179: n | H179: n | I179: 0.9 | L179: 16 | O179: 0 | P179: 0 | Q179: 0 | R179: 0 | S179: 0 | T179: 1 | U179: 1 | V179: 1 | W179: 1 | X179: 1 | Y179: 1
B180: 1 | C180: 7 | D180: 7 | E180: 15 | F180: 1 | G180: n | H180: n | I180: 0.9 | L180: 16 | O180: 0 | P180: 0 | Q180: 0 | R180: 0 | S180: 0 | T180: 1 | U180: 1 | V180: 1 | W180: 1 | X180: 1 | Y180: 1
B181: 1 | C181: 7 | D181: 7 | E181: 16 | F181: 1 | G181: n | H181: n | I181: 1.1 | L181: 16 | O181: 0 | P181: 0 | Q181: 0 | R181: 0 | S181: 0 | T181: 1 | U181: 1 | V181: 1 | W181: 1 | X181: 1 | Y181: 1
B182: 1 | C182: 7 | D182: 7 | E182: 17 | F182: 1 | G182: n | H182: n | I182: 1.2 | L182: 16 | O182: =IF(($L182-$I182)/(($C$4-$C$16))>=O$21,1*$F182,0) -> 0 | P182: 0 | Q182: 0 | R182: 0 | S182: 0 | T182: 1 | U182: 1 | V182: 1 | W182: 1 | X182: 1 | Y182: 1
B183: 1 | C183: 7 | D183: 7 | E183: 18 | F183: 1 | G183: n | H183: n | I183: 1 | L183: 16 | O183: 0 | P183: 0 | Q183: 0 | R183: 0 | S183: 0 | T183: 1 | U183: 1 | V183: 1 | W183: 1 | X183: 1 | Y183: 1
B184: 1 | C184: 7 | D184: 7 | E184: 19 | F184: 1 | G184: n | H184: n | I184: 0.8 | L184: 16 | O184: 0 | P184: 0 | Q184: 0 | R184: 0 | S184: 0 | T184: 1 | U184: 1 | V184: 1 | W184: 1 | X184: 1 | Y184: 1
B185: 1 | C185: 7 | D185: 7 | E185: 20 | F185: 1 | G185: n | H185: n | I185: 0.6 | L185: 16 | O185: 0 | P185: 0 | Q185: 0 | R185: 0 | S185: 0 | T185: 1 | U185: 1 | V185: 1 | W185: 1 | X185: 1 | Y185: 1
B186: 1 | C186: 7 | D186: 7 | E186: 21 | F186: 1 | G186: n | H186: n | I186: 0.4 | L186: 16 | O186: 0 | P186: 0 | Q186: 0 | R186: 0 | S186: 0 | T186: 1 | U186: 1 | V186: 1 | W186: 1 | X186: 1 | Y186: 1
B187: 1 | C187: 7 | D187: 7 | E187: 22 | F187: 1 | G187: n | H187: n | I187: 0.4 | L187: 16 | O187: 0 | P187: 0 | Q187: 0 | R187: 0 | S187: 0 | T187: 1 | U187: 1 | V187: 1 | W187: 1 | X187: 1 | Y187: 1
B188: 1 | C188: 7 | D188: 7 | E188: 23 | F188: 1 | G188: n | H188: n | I188: 0.4 | L188: 16 | O188: 0 | P188: 0 | Q188: 0 | R188: 0 | S188: 0 | T188: 1 | U188: 1 | V188: 1 | W188: 1 | X188: 1 | Y188: 1
B189: 1 | C189: 7 | D189: 7 | E189: 24 | F189: 1 | G189: n | H189: n | I189: 0.3 | L189: 16 | O189: 0 | P189: 0 | Q189: 0 | R189: 0 | S189: 0 | T189: 1 | U189: 1 | V189: 1 | W189: 1 | X189: 1 | Y189: 1
B190: 1 | C190: 1 | D190: 8 | E190: 1 | F190: 1 | G190: j | H190: j | I190: 0.2 | L190: 16 | O190: 0 | P190: 0 | Q190: 0 | R190: 0 | S190: 0 | T190: 1 | U190: 1 | V190: 1 | W190: 1 | X190: 1 | Y190: 1
B191: 1 | C191: 1 | D191: 8 | E191: 2 | F191: 1 | G191: j | H191: j | I191: 0.3 | L191: 16 | O191: 0 | P191: 0 | Q191: 0 | R191: 0 | S191: 0 | T191: 1 | U191: 1 | V191: 1 | W191: 1 | X191: 1 | Y191: 1
B192: 1 | C192: 1 | D192: 8 | E192: 3 | F192: 1 | G192: j | H192: j | I192: 0.2 | L192: 16 | O192: 0 | P192: 0 | Q192: 0 | R192: 0 | S192: 0 | T192: 1 | U192: 1 | V192: 1 | W192: 1 | X192: 1 | Y192: 1
B193: 1 | C193: 1 | D193: 8 | E193: 4 | F193: 1 | G193: j | H193: j | I193: -0.1 | L193: 16 | O193: 0 | P193: 0 | Q193: 0 | R193: 0 | S193: 0 | T193: 1 | U193: 1 | V193: 1 | W193: 1 | X193: 1 | Y193: 1
B194: 1 | C194: 1 | D194: 8 | E194: 5 | F194: 1 | G194: j | H194: j | I194: -0.1 | L194: 16 | O194: 0 | P194: 0 | Q194: 0 | R194: 0 | S194: 0 | T194: 1 | U194: 1 | V194: 1 | W194: 1 | X194: 1 | Y194: 1
B195: 1 | C195: 1 | D195: 8 | E195: 6 | F195: 1 | G195: j | H195: j | I195: 0 | L195: 16 | O195: 0 | P195: 0 | Q195: 0 | R195: 0 | S195: 0 | T195: 1 | U195: 1 | V195: 1 | W195: 1 | X195: 1 | Y195: 1
B196: 1 | C196: 1 | D196: 8 | E196: 7 | F196: 1 | G196: j | H196: j | I196: 0 | L196: 16 | O196: 0 | P196: 0 | Q196: 0 | R196: 0 | S196: 0 | T196: 1 | U196: 1 | V196: 1 | W196: 1 | X196: 1 | Y196: 1
B197: 1 | C197: 1 | D197: 8 | E197: 8 | F197: 1 | G197: j | H197: j | I197: 0 | L197: 17 | O197: 0 | P197: 0 | Q197: 0 | R197: 0 | S197: 1 | T197: 1 | U197: 1 | V197: 1 | W197: 1 | X197: 1 | Y197: 1
B198: 1 | C198: 1 | D198: 8 | E198: 9 | F198: 1 | G198: j | H198: j | I198: -0.1 | L198: 17 | O198: =IF(($L198-$I198)/(($C$4-$C$16))>=O$21,1*$F198,0) -> 0 | P198: 0 | Q198: 0 | R198: 0 | S198: 1 | T198: 1 | U198: 1 | V198: 1 | W198: 1 | X198: 1 | Y198: 1
B199: 1 | C199: 1 | D199: 8 | E199: 10 | F199: 1 | G199: j | H199: j | I199: -0.1 | L199: 17 | O199: 0 | P199: 0 | Q199: 0 | R199: 0 | S199: 1 | T199: 1 | U199: 1 | V199: 1 | W199: 1 | X199: 1 | Y199: 1
B200: 1 | C200: 1 | D200: 8 | E200: 11 | F200: 1 | G200: j | H200: j | I200: 0.2 | L200: 17 | O200: 0 | P200: 0 | Q200: 0 | R200: 0 | S200: 1 | T200: 1 | U200: 1 | V200: 1 | W200: 1 | X200: 1 | Y200: 1
B201: 1 | C201: 1 | D201: 8 | E201: 12 | F201: 1 | G201: j | H201: j | I201: 0.5 | L201: 17 | O201: 0 | P201: 0 | Q201: 0 | R201: 0 | S201: 1 | T201: 1 | U201: 1 | V201: 1 | W201: 1 | X201: 1 | Y201: 1
B202: 1 | C202: 1 | D202: 8 | E202: 13 | F202: 1 | G202: j | H202: j | I202: 0.5 | L202: 17 | O202: 0 | P202: 0 | Q202: 0 | R202: 0 | S202: 1 | T202: 1 | U202: 1 | V202: 1 | W202: 1 | X202: 1 | Y202: 1
B203: 1 | C203: 1 | D203: 8 | E203: 14 | F203: 1 | G203: j | H203: j | I203: 0.3 | L203: 17 | O203: 0 | P203: 0 | Q203: 0 | R203: 0 | S203: 1 | T203: 1 | U203: 1 | V203: 1 | W203: 1 | X203: 1 | Y203: 1
B204: 1 | C204: 1 | D204: 8 | E204: 15 | F204: 1 | G204: j | H204: j | I204: 0.3 | L204: 17 | O204: 0 | P204: 0 | Q204: 0 | R204: 0 | S204: 1 | T204: 1 | U204: 1 | V204: 1 | W204: 1 | X204: 1 | Y204: 1
B205: 1 | C205: 1 | D205: 8 | E205: 16 | F205: 1 | G205: j | H205: j | I205: 0.4 | L205: 17 | O205: 0 | P205: 0 | Q205: 0 | R205: 0 | S205: 1 | T205: 1 | U205: 1 | V205: 1 | W205: 1 | X205: 1 | Y205: 1
B206: 1 | C206: 1 | D206: 8 | E206: 17 | F206: 1 | G206: j | H206: j | I206: 0.2 | L206: 17 | O206: 0 | P206: 0 | Q206: 0 | R206: 0 | S206: 1 | T206: 1 | U206: 1 | V206: 1 | W206: 1 | X206: 1 | Y206: 1
... 2044 more rows

Sheet Données (hidden)
A1: Combustible utilisé par la chaufferie | G1: PCS MJ/m³ ou litre | H1: PCI MJ/m³ ou litre | I1: kWh pcs/m³ ou litre | J1: kWh pci/m³ ou litre | K1: PCI/PCS | L1: Conversion
A2: Gaz pauvre L - G25 (Bruxelles et brabant wallon) | G2: 36.9 | H2: 33.3 | I2: =G2/3.6 -> 10.25 | J2: 9.25 | K2: =J2/I2 -> 0.9024390244 | L2: 0.902
A3: Gaz riche H - G20 (Wallonie, hors brabant wallon) | G3: 42.9 | H3: 38.7 | I3: 11.91666667 | J3: 10.75 | K3: =J3/I3 -> 0.9020979021 | L3: 0.902 | N3: Gaz naturel
A4: Fuel | G4: 38.1 | H4: 35.8 | I4: 10.58333333 | J4: 9.944444444 | K4: =J4/I4 -> 0.9396325459 | L4: 9.94 | N4: Mazout
A5: Cellule : | B5: 1 | C5: =INDEX(A2:A4,B5,1) -> Gaz pauvre L - G25 (Bruxelles et brabant wallon) | G5: =INDEX(G2:G4,$B$5,1) -> 36.9 | H5: 33.3 | I5: 10.25 | J5: 9.25 | K5: 0.9024390244 | L5: =INDEX(L2:L4,$B$5,1) -> 0.902
A7: Unité combustible
A8: =IF(B5=3,"litres de mazout","- (ne pas sélectionner ce choix)") -> - (ne pas sélectionner ce choix)
A9: =IF(B5=3,"-","- (ne pas sélectionner ce choix)") -> - (ne pas sélectionner ce choix)
A10: =IF(B5=3,"-","kWh de gaz PCS") -> kWh de gaz PCS
A11: Cellule : | B11: 3 | C11: =INDEX(A8:A10,B11,1) -> kWh de gaz PCS
A13: Profil de fonctionnement hebdomadaire
A14: 5 jours sur 7 (jours ouvrables)
A15: 5 jours sur 7 (calendrier scolaire)
A16: 6 jours sur 7 (y compris le samedi)
A17: 7 jours sur 7
A19: Type de chaudière
A20: =IF(B5=3,"Chaudière fuel","-") -> -
A21: =IF(B5=3,"-","Chaudière gaz à brûleur pulsé") -> Chaudière gaz à brûleur pulsé
A22: =IF(B5=3,"-","Chaudière gaz atmosphérique") -> Chaudière gaz atmosphérique
A24: Type de brûleur
A25: Brûleur 1 allure ou brûleur avec petite allure de démarrage
A26: Brûleur 2 allures 60 / 100% (régulé en cascade)
A27: Cellule : | B27: ='Calcul du rendement'!P82 -> 1
A29: Régulation des chaudières
A30: Fonctionnement en parallèle
A31: Régulation en cascade mais maintien de l'irrigation de toutes les chaudières
A32: Régulation en cascade avec arrêt de l'irrigation des chaudières inutilisées
A33: Cellule : | B33: ='Calcul du rendement'!P81 -> 3
A35: Etat de l'isolation
A36: Correcte
A37: Déteriorée ou absente
A39: Clapet d'air brûleur
A40: Ouvert
A41: Fermé
A43: Rendement utile par défaut des chaudières atmosphériques
A44: Année limite | B44: Rendement de combustion
A45: 2050 | B45: 90
A46: 1985 | B46: 87
A47: 1975 | B47: 85
A49: Gammes de température retenues pour la définition du rendement d'une chaudière à condensation
A50: T° retour chaudière
A51: Inférieure à 45°C
A52: Comprise entre 45 et 55°C
A53: Supérieure à 55°C
A55: Faisceau de présomptions concernant la température de retour des chaudières à condensation
A56: BP | B56: RCTG | C56: RCSTG
A57: 1 | B57: 1 | C57: 1 | D57: =A57&B57&C57 -> 111 | E57: Inférieure à 45°C | H57: BP | I57: = By Pass (bouclage collecteur ou bouteille casse-pression ou vannes de régulation diviseuses) | O57: 2
A58: 1 | B58: 1 | C58: 2 | D58: =A58&B58&C58 -> 112 | E58: Inférieure à 45°C | H58: si 1 | I58: Absence = bon
A59: 1 | B59: 1 | C59: 3 | D59: 113 | E59: Inférieure à 45°C | H59: si 2 | I59: Présence = mauvais
A60: 1 | B60: 2 | C60: 1 | D60: 121 | E60: Inférieure à 45°C | H60: RCTG | I60: = Régulation chaudière en température glissante | O60: 2
A61: 1 | B61: 2 | C61: 2 | D61: 122 | E61: Supérieure à 55°C | H61: si 1 | I61: Présente et bien réglée (max 5°C au-dessus du circuit le plus demandeur)
A62: 1 | B62: 2 | C62: 3 | D62: 123 | E62: Comprise entre 45 et 55°C | H62: si 2 | I62: Absente ou mal réglée (plus de 15°C au-dessus du circuit le plus demandeur)
A63: 1 | B63: 3 | C63: 1 | D63: 131 | E63: Inférieure à 45°C | H63: si 3 | I63: Partiellement bien réglée (max 15°C au-dessus du circuit le plus demandeur)
A64: 1 | B64: 3 | C64: 2 | D64: 132 | E64: Supérieure à 55°C | H64: RCSTG | I64: = Régulation circuits secondaires en température glissante | O64: 2
A65: 1 | B65: 3 | C65: 3 | D65: 133 | E65: Comprise entre 45 et 55°C | H65: si 1 | I65: Présente et bien réglée
A66: 2 | B66: 1 | C66: 1 | D66: 211 | E66: Inférieure à 45°C | H66: si 2 | I66: Absente ou mal réglée
A67: 2 | B67: 1 | C67: 2 | D67: 212 | E67: Comprise entre 45 et 55°C | H67: si 3 | I67: Partiellement bon (présence de consommateurs à haute température)
A68: 2 | B68: 1 | C68: 3 | D68: 213 | E68: Comprise entre 45 et 55°C
A69: 2 | B69: 2 | C69: 1 | D69: 221 | E69: Supérieure à 55°C | H69: Cellule BP | I69: 1
A70: 2 | B70: 2 | C70: 2 | D70: 222 | E70: Supérieure à 55°C | H70: Cellule RCTG | I70: 1
A71: 2 | B71: 2 | C71: 3 | D71: 223 | E71: Supérieure à 55°C | H71: Cellule RCSTG | I71: 2
A72: 2 | B72: 3 | C72: 1 | D72: 231 | E72: Comprise entre 45 et 55°C | H72: Combinaison | I72: =I69&I70&I71 -> 112
A73: 2 | B73: 3 | C73: 2 | D73: 232 | E73: Supérieure à 55°C
A74: 2 | B74: 3 | C74: 3 | D74: 233 | E74: Comprise entre 45 et 55°C
A76: Données pertes à l'arrêt en fonction de l'âge de la chaudière
D77: Pertes à l'arrêt (75/60°C) en %
A78: Puissance en kW | B78: >01 | C78: 81-00 | D78: 76-80 | E78: 71-75 | F78: 66-70 | G78: <65
A79: 90 | B79: 0.0041 | C79: 0.0055 | D79: 0.012 | E79: 0.0165 | F79: 0.022 | G79: 0.027
A80: 100 | B80: 0.0037 | C80: 0.005 | D80: 0.0115 | E80: 0.016 | F80: 0.021 | G80: 0.026
A81: 150 | B81: 0.0028 | C81: 0.004 | D81: 0.0095 | E81: 0.0135 | F81: 0.018 | G81: 0.0225
A82: 300 | B82: 0.0014 | C82: 0.003 | D82: 0.0075 | E82: 0.0105 | F82: 0.015 | G82: 0.0175
A83: 500 | B83: 0.0013 | C83: 0.0025 | D83: 0.006 | E83: 0.0085 | F83: 0.0125 | G83: 0.0145
A84: 1000 | B84: 0.0013 | C84: 0.0025 | D84: 0.0045 | E84: 0.007 | F84: 0.01 | G84: 0.0115
A85: 2000 | B85: 0.0012 | C85: 0.002 | D85: 0.004 | E85: 0.0055 | F85: 0.008 | G85: 0.01
A86: 5000 | B86: 0.0011 | C86: 0.0015 | D86: 0.0035 | E86: 0.005 | F86: 0.007 | G86: 0.009
A87: Année limite | B87: 2050 | C87: 2000 | D87: 1980 | E87: 1975 | F87: 1970 | G87: 1965
A88: Paramètres | B88: 0.0138 | C88: 0.019 | D88: 0.0486 | E88: 0.0655 | F88: 0.0807 | G88: 0.0953
A89: Paramètres | B89: -0.3278 | C89: -0.302 | D89: -0.325 | E89: -0.3165 | F89: -0.2964 | G89: -0.2916
B91: Chaudière 1 | C91: Chaudière 2 | D91: Chaudière 3 | E91: Chaudière 4
B92: =INDEX($B$88:$G$89,1,MATCH('Calcul du rendement'!G97,$B$87:$G$87,-1)) -> 0.0486 | C92: =INDEX($B$88:$G$89,1,MATCH('Calcul du rendement'!H97,$B$87:$G$87,-1)) -> 0.0486 | D92: =INDEX($B$88:$G$89,1,MATCH('Calcul du rendement'!I97,$B$87:$G$87,-1)) -> 0.0953 | E92: =INDEX($B$88:$G$89,1,MATCH('Calcul du rendement'!J97,$B$87:$G$87,-1)) -> 0.0953
B93: =INDEX($B$88:$G$89,2,MATCH('Calcul du rendement'!G97,$B$87:$G$87,-1)) -> -0.325 | C93: =INDEX($B$88:$G$89,2,MATCH('Calcul du rendement'!H97,$B$87:$G$87,-1)) -> -0.325 | D93: =INDEX($B$88:$G$89,2,MATCH('Calcul du rendement'!I97,$B$87:$G$87,-1)) -> -0.2916 | E93: =INDEX($B$88:$G$89,2,MATCH('Calcul du rendement'!J97,$B$87:$G$87,-1)) -> -0.2916
A95: Définition du facteur correctif de la température des pertes à l'arrêt
B96: Température moyenne des chaudières estimée | C96: Facteur de correction du coefficient de perte à l'arrêt
A97: Sur aquatast (à 75°C) | B97: 70°C | C97: 1
A98: Température glissante avec limite basse (à 60°C) | B98: 56°C | C98: 0.75
A99: Température glissante sans limite basse | B99: 42°C | C99: 0.51
A101: Présence chaudière à condensation
A102: Oui
A103: Non
